Workbook

Sheet HOME
B2: Maximum Ingredient Optimization Workbook
I3: "MIOW"
I4: Verson 1.1
B6: A workbook to determine the maximum safe level of feed ingredients
C9: Rashed A. Alhotan | I9: Dmitry V. Vedenov | P9: Gene M. Pesti
C10: Department of Poultry Science | I10: Department of Agricultural Economics | P10: Department of Poultry Science
C11: The University of Georgia | I11: Texas A&M University | P11: The University of Georgia
C12: Athens, Georgia 30602 | I12: College Station, TX 77843 | P12: Athens, Georgia 30602
C13: ralhota1@uga.edu | I13: vedenov@tamu.edu | P13: gpesti@uga.edu

Sheet Instructions
B2: Instructions for feeding trial planning
B3: 1. Make changes in cells C5:C6 and C8:C9
B4: 2. Press "Create Grid" button
B5: 3. If you want to adjust levels, edit directly in corresponding cells
B6: 4. Select baseline model which will be used to generate random data
B7: 5. Enter "true" coefficients of the baseline mode
B8: 6. Provide guesses for coefficients for all remaining models (this is necessary to ensure convergence of Solver Routine)
B9: 6. Select simulation parameters (number of "experiments" and coefficient of variation for random draws)
B10: 7. Press "Run Simulations"
B12: Note: If you end up with poor estimates for a particular model, try to provide more accurate initial guesses for the coefficients
B14: Estimation of the MSL for raw data
B16: Please follow instructions on "True Parameters Estimator (BLL)" and "True Parameters Estimator (BLQ)" worksheets

Sheet Levels & Reps
H2: Experimental Grid
B3: 1. Experiment Design
B5: Number of Levels (>1, < 25) | C5: 5
B6: Number of Reps (max = 20) | C6: 16
B8: Minimum Ingredient Level | C8: 0
B9: Maximum Ingredient Level | C9: 21
F10: Levels
F11: 1 | G11: 2 | H11: 3 | I11: 4 | J11: 5
D12: Replicates | E12: 1 | F12: 0 | G12: 5.25 | H12: 10.5 | I12: 15.75 | J12: 21
E13: 2 | F13: 0 | G13: 5.25 | H13: 10.5 | I13: 15.75 | J13: 21
E14: 3 | F14: 0 | G14: 5.25 | H14: 10.5 | I14: 15.75 | J14: 21
E15: 4 | F15: 0 | G15: 5.25 | H15: 10.5 | I15: 15.75 | J15: 21
E16: 5 | F16: 0 | G16: 5.25 | H16: 10.5 | I16: 15.75 | J16: 21
E17: 6 | F17: 0 | G17: 5.25 | H17: 10.5 | I17: 15.75 | J17: 21
E18: 7 | F18: 0 | G18: 5.25 | H18: 10.5 | I18: 15.75 | J18: 21
E19: 8 | F19: 0 | G19: 5.25 | H19: 10.5 | I19: 15.75 | J19: 21
E20: 9 | F20: 0 | G20: 5.25 | H20: 10.5 | I20: 15.75 | J20: 21
E21: 10 | F21: 0 | G21: 5.25 | H21: 10.5 | I21: 15.75 | J21: 21
E22: 11 | F22: 0 | G22: 5.25 | H22: 10.5 | I22: 15.75 | J22: 21
E23: 12 | F23: 0 | G23: 5.25 | H23: 10.5 | I23: 15.75 | J23: 21
E24: 13 | F24: 0 | G24: 5.25 | H24: 10.5 | I24: 15.75 | J24: 21
E25: 14 | F25: 0 | G25: 5.25 | H25: 10.5 | I25: 15.75 | J25: 21
E26: 15 | F26: 0 | G26: 5.25 | H26: 10.5 | I26: 15.75 | J26: 21
E27: 16 | F27: 0 | G27: 5.25 | H27: 10.5 | I27: 15.75 | J27: 21

Sheet Simulations
C3: 2. Choose One Model to Simulate Experiments From | K3: 4. Choose Simulation Parameters
C5: Model | D5: True Parameters of the Response Function | K5: Selected ("True") Model | O5: BLQ
D6: Max | E6: Rate Constant | F6: Ingredient Level | K6: Number of Experiments (Max = 1000) | O6: 100
D7: 56.1 | E7: -18.82838406 | F7: 6 | K7: Coefficient of variation | O7: 0.05
D8: Max | E8: Rate Constant | F8: Ingredient Level
D9: 56.1 | E9: -1.74 | F9: 6
D10: Const | E10: Linear | F10: Quadratic
D11: 2.1821 | E11: 0.0016 | F11: -3e-05
C17: 3. Select up to Three Models to Fit to Simulated Experiments
C19: Model | D19: Initial Guesses for the Parameters of Fitted Functions
D20: Max | E20: Rate Constant | F20: Ingredient Level
D21: 56.1 | E21: -18.82838406 | F21: 7
D22: Max | E22: Rate Constant | F22: Ingredient Level
D23: 56.1 | E23: -1.74 | F23: 5
D24: Const | E24: Linear | F24: Quadratic
D25: 2.0122 | E25: 0.0624 | F25: -0.0023
C32: 5. Results
C34: Experiment # | D34: Model Fits
D35: Broken Line Model | J35: Broken Line Quadratic Model | P35: Quadratic (2nd Order Polynomial)
D36: Max/Min | E36: Rate Constant | F36: Maximum Safe Level | G36: R-Squared | H36: SE of Requirement | J36: Max/Min | K36: Rate Constant | L36: Maximum Safe Level | M36: R-Squared | N36: SE of Requirement | P36: Const | Q36: Linear | R36: Square | S36: Max. Safe Level (Calculated) | T36: R-Squared
C37: Average | D37: =IF(OR(ISBLANK(D$41),ISNA(D$41),D$41="N/A"),"N/A",AVERAGE(D$41:D$1040)) -> 49.8283702 | E37: =IF(OR(ISBLANK(E$41),ISNA(E$41),E$41="N/A"),"N/A",AVERAGE(E$41:E$1040)) -> -38.87279873 | F37: 11.14420313 | G37: 0.987319403 | H37: 0.168961308 | J37: =IF(OR(ISBLANK(J$41),ISNA(J$41),J$41="N/A"),"N/A",AVERAGE(J$41:J$1040)) -> 56.16938712 | K37: -1.731393957 | L37: 5.970884994 | M37: 0.9970975774 | N37: 0.162736229 | P37: =IF(OR(ISBLANK(P$41),ISNA(P$41),P$41="N/A"),"N/A",AVERAGE(P$41:P$1040)) -> N/A | Q37: N/A | R37: N/A | S37: N/A | T37: N/A
C38: Std. Dev. | D38: =IF(OR(ISBLANK(D$41),ISNA(D$41),D$41="N/A"),"N/A",STDEV(D$41:D$1040)) -> 6.081090511 | E38: =IF(OR(ISBLANK(E$41),ISNA(E$41),E$41="N/A"),"N/A",STDEV(E$41:E$1040)) -> 4.909083204 | F38: 1.157549238 | G38: 0.003092482079 | H38: 0.007598738266 | J38: =IF(OR(ISBLANK(J$41),ISNA(J$41),J$41="N/A"),"N/A",STDEV(J$41:J$1040)) -> 0.5137898657 | K38: 0.04210328456 | L38: 0.119976965 | M38: 0.001003419757 | N38: 0.02709300276 | P38: =IF(OR(ISBLANK(P$41),ISNA(P$41),P$41="N/A"),"N/A",STDEV(P$41:P$1040)) -> N/A | Q38: N/A | R38: N/A | S38: N/A | T38: N/A
C39: Lower 95% | D39: =IF(OR(ISBLANK(D$41),ISNA(D$41),D$41="N/A"),"N/A",D$37-_xlfn.CONFIDENCE.NORM(0.05,D$38,COUNTA(D$41:D$1040))) -> 48.63649836 | E39: =IF(OR(ISBLANK(E$41),ISNA(E$41),E$41="N/A"),"N/A",E$37-_xlfn.CONFIDENCE.NORM(0.05,E$38,COUNTA(E$41:E$1040))) -> -39.83496136 | F39: 10.91732765 | G39: 0.9867132876 | H39: 0.1674719827 | J39: =IF(OR(ISBLANK(J$41),ISNA(J$41),J$41="N/A"),"N/A",J$37-_xlfn.CONFIDENCE.NORM(0.05,J$38,COUNTA(J$41:J$1040))) -> 56.06868616 | K39: -1.739646049 | L39: 5.947369941 | M39: 0.9969009108 | N39: 0.157426098 | P39: =IF(OR(ISBLANK(P$41),ISNA(P$41),P$41="N/A"),"N/A",P$37-_xlfn.CONFIDENCE.NORM(0.05,P$38,COUNTA(P$41:P$1040))) -> N/A | Q39: N/A | R39: N/A | S39: N/A | T39: N/A
C40: Upper 95% | D40: =IF(OR(ISBLANK(D$41),ISNA(D$41),D$41="N/A"),"N/A",D$37+_xlfn.CONFIDENCE.NORM(0.05,D$38,COUNTA(D$41:D$1040))) -> 51.02024204 | E40: =IF(OR(ISBLANK(E$41),ISNA(E$41),E$41="N/A"),"N/A",E$37+_xlfn.CONFIDENCE.NORM(0.05,E$38,COUNTA(E$41:E$1040))) -> -37.9106361 | F40: 11.37107861 | G40: 0.9879255183 | H40: 0.1704506334 | J40: =IF(OR(ISBLANK(J$41),ISNA(J$41),J$41="N/A"),"N/A",J$37+_xlfn.CONFIDENCE.NORM(0.05,J$38,COUNTA(J$41:J$1040))) -> 56.27008808 | K40: -1.723141865 | L40: 5.994400047 | M40: 0.9972942441 | N40: 0.16804636 | P40: =IF(OR(ISBLANK(P$41),ISNA(P$41),P$41="N/A"),"N/A",P$37+_xlfn.CONFIDENCE.NORM(0.05,P$38,COUNTA(P$41:P$1040))) -> N/A | Q40: N/A | R40: N/A | S40: N/A | T40: N/A
C41: 1 | D41: 44.60702942 | E41: -42.94764834 | F41: 12.1877345 | G41: 0.99052244 | H41: 0.1637024468 | J41: 56.33255272 | K41: -1.734295244 | L41: 6.001169457 | M41: 0.9979688982 | N41: 0.1376988883 | P41: N/A | Q41: N/A | R41: N/A | S41: N/A | T41: N/A
C42: 2 | D42: 55.96103076 | E42: -33.30525131 | F42: 9.889274719 | G42: 0.9845736065 | H42: 0.1689727229 | J42: 56.01804443 | K42: -1.685610417 | L42: 5.876763833 | M42: 0.9975506003 | N42: 0.1519974847 | P42: N/A | Q42: N/A | R42: N/A | S42: N/A | T42: N/A
C43: 3 | D43: 44.37922812 | E43: -42.78168262 | F43: 12.1659548 | G43: 0.9902575447 | H43: 0.1668972249 | J43: 56.01783963 | K43: -1.730985616 | L43: 5.996209848 | M43: 0.9975052207 | N43: 0.1526745102 | P43: N/A | Q43: N/A | R43: N/A | S43: N/A | T43: N/A
C44: 4 | D44: 44.26171351 | E44: -43.77475131 | F44: 12.24492506 | G44: 0.989429362 | H44: 0.1705321402 | J44: 55.87931579 | K44: -1.776609238 | L44: 6.095045957 | M44: 0.9966695073 | N44: 0.175793695 | P44: N/A | Q44: N/A | R44: N/A | S44: N/A | T44: N/A
C45: 5 | D45: 44.2784453 | E45: -43.32795423 | F45: 12.18245655 | G45: 0.9903014101 | H45: 0.1658363446 | J45: 56.00460785 | K45: -1.754214539 | L45: 6.016879025 | M45: 0.9975491535 | N45: 0.1511976353 | P45: N/A | Q45: N/A | R45: N/A | S45: N/A | T45: N/A
C46: 6 | D46: 43.83172598 | E46: -42.77997567 | F46: 12.13341041 | G46: 0.9909940846 | H46: 0.1617036301 | J46: 55.51589332 | K46: -1.731685574 | L46: 5.969090292 | M46: 0.998124607 | N46: 0.1324731499 | P46: N/A | Q46: N/A | R46: N/A | S46: N/A | T46: N/A
C47: 7 | D47: 56.52314003 | E47: -33.87110285 | F47: 9.898463726 | G47: 0.9818135654 | H47: 0.1834785357 | J47: 56.51854483 | K47: -1.722328914 | L47: 5.916583778 | M47: 0.9951983527 | N47: 0.2127265903 | P47: N/A | Q47: N/A | R47: N/A | S47: N/A | T47: N/A
C48: 8 | D48: 55.93947475 | E48: -33.59469461 | F48: 9.913039111 | G48: 0.9854842446 | H48: 0.1632664607 | J48: 56.10315308 | K48: -1.703394884 | L48: 5.906075593 | M48: 0.9980488135 | N48: 0.1354682007 | P48: N/A | Q48: N/A | R48: N/A | S48: N/A | T48: N/A
C49: 9 | D49: 44.46238989 | E49: -43.43825417 | F49: 12.23895086 | G49: 0.9909105624 | H49: 0.1582513025 | J49: 56.20923148 | K49: -1.75454076 | L49: 6.051572247 | M49: 0.9984740589 | N49: 0.1190865416 | P49: N/A | Q49: N/A | R49: N/A | S49: N/A | T49: N/A
C50: 10 | D50: 55.38095951 | E50: -33.55237578 | F50: 9.904827692 | G50: 0.9847014601 | H50: 0.1678785071 | J50: 55.72794841 | K50: -1.685627196 | L50: 5.834552376 | M50: 0.996081174 | N50: 0.1927272075 | P50: N/A | Q50: N/A | R50: N/A | S50: N/A | T50: N/A
C51: 11 | D51: 44.4132825 | E51: -43.24310943 | F51: 12.23910219 | G51: 0.9896210865 | H51: 0.1692081016 | J51: 56.15976672 | K51: -1.74453736 | L51: 6.042084202 | M51: 0.9972590738 | N51: 0.1597601482 | P51: N/A | Q51: N/A | R51: N/A | S51: N/A | T51: N/A
C52: 12 | D52: 56.01262755 | E52: -33.95993304 | F52: 9.914282166 | G52: 0.9842770681 | H52: 0.1699931782 | J52: 56.13576827 | K52: -1.725262845 | L52: 5.920771081 | M52: 0.9970866742 | N52: 0.1655148299 | P52: N/A | Q52: N/A | R52: N/A | S52: N/A | T52: N/A
C53: 13 | D53: 57.01297653 | E53: -33.81412829 | F53: 9.897685683 | G53: 0.9850714229 | H53: 0.1659779634 | J53: 57.15405325 | K53: -1.709478256 | L53: 5.874604309 | M53: 0.9976361291 | N53: 0.1493267253 | P53: N/A | Q53: N/A | R53: N/A | S53: N/A | T53: N/A
C54: 14 | D54: 43.92434682 | E54: -42.52826367 | F54: 12.16015655 | G54: 0.989789173 | H54: 0.1711482287 | J54: 55.54970012 | K54: -1.718966813 | L54: 5.982579697 | M54: 0.9970901275 | N54: 0.1650106008 | P54: N/A | Q54: N/A | R54: N/A | S54: N/A | T54: N/A
C55: 15 | D55: 44.49793559 | E55: -43.9164525 | F55: 12.23414884 | G55: 0.990396407 | H55: 0.162902882 | J55: 56.29832161 | K55: -1.777296263 | L55: 6.062382038 | M55: 0.9978102595 | N55: 0.1426431227 | P55: N/A | Q55: N/A | R55: N/A | S55: N/A | T55: N/A
C56: 16 | D56: 44.19634379 | E56: -42.36684578 | F56: 12.13583173 | G56: 0.9894294843 | H56: 0.1752212222 | J56: 55.93169476 | K56: -1.708264476 | L56: 5.940141118 | M56: 0.9968357131 | N56: 0.1723850706 | P56: N/A | Q56: N/A | R56: N/A | S56: N/A | T56: N/A
C57: 17 | D57: 44.76845239 | E57: -43.93171893 | F57: 12.26033192 | G57: 0.9895653057 | H57: 0.1687689293 | J57: 56.46348786 | K57: -1.780301594 | L57: 6.097739731 | M57: 0.9969478571 | N57: 0.1682463128 | P57: N/A | Q57: N/A | R57: N/A | S57: N/A | T57: N/A
C58: 18 | D58: 44.10935679 | E58: -43.34763755 | F58: 12.20866814 | G58: 0.991040518 | H58: 0.1582968706 | J58: 55.56739297 | K58: -1.763976847 | L58: 6.08196011 | M58: 0.998011646 | N58: 0.1358079651 | P58: N/A | Q58: N/A | R58: N/A | S58: N/A | T58: N/A
C59: 19 | D59: 56.51036531 | E59: -33.84567374 | F59: 9.893255359 | G59: 0.9843027899 | H59: 0.1703738952 | J59: 56.69172941 | K59: -1.706533517 | L59: 5.852581951 | M59: 0.9965821388 | N59: 0.1798113824 | P59: N/A | Q59: N/A | R59: N/A | S59: N/A | T59: N/A
C60: 20 | D60: 56.31309576 | E60: -33.9499078 | F60: 9.922291926 | G60: 0.9841159904 | H60: 0.1706761415 | J60: 56.30190327 | K60: -1.737173694 | L60: 5.977270583 | M60: 0.9977789076 | N60: 0.1441449809 | P60: N/A | Q60: N/A | R60: N/A | S60: N/A | T60: N/A
C61: 21 | D61: 44.50991728 | E61: -43.55392879 | F61: 12.22681396 | G61: 0.989787324 | H61: 0.1683491388 | J61: 56.18902506 | K61: -1.764191205 | L61: 6.062467458 | M61: 0.9971169245 | N61: 0.163731367 | P61: N/A | Q61: N/A | R61: N/A | S61: N/A | T61: N/A
C62: 22 | D62: 56.71368617 | E62: -33.56880858 | F62: 9.897911787 | G62: 0.9835190151 | H62: 0.1745263591 | J62: 56.68711799 | K62: -1.708169756 | L62: 5.921277342 | M62: 0.9970510723 | N62: 0.1665226996 | P62: N/A | Q62: N/A | R62: N/A | S62: N/A | T62: N/A
C63: 23 | D63: 44.00196279 | E63: -43.15671336 | F63: 12.18369484 | G63: 0.9900345746 | H63: 0.1680730505 | J63: 55.53128097 | K63: -1.75323614 | L63: 6.045047625 | M63: 0.9970459767 | N63: 0.1658527505 | P63: N/A | Q63: N/A | R63: N/A | S63: N/A | T63: N/A
C64: 24 | D64: 56.07754371 | E64: -33.78800776 | F64: 9.914257252 | G64: 0.9857536678 | H64: 0.1616933351 | J64: 56.22125428 | K64: -1.715107996 | L64: 5.914856521 | M64: 0.9984565456 | N64: 0.1204186743 | P64: N/A | Q64: N/A | R64: N/A | S64: N/A | T64: N/A
C65: 25 | D65: 56.1371246 | E65: -33.85056452 | F65: 9.919624309 | G65: 0.9830417359 | H65: 0.176518176 | J65: 56.16961594 | K65: -1.728021331 | L65: 5.95874474 | M65: 0.9964114215 | N65: 0.1834823186 | P65: N/A | Q65: N/A | R65: N/A | S65: N/A | T65: N/A
C66: 26 | D66: 44.43945992 | E66: -43.96321233 | F66: 12.25780063 | G66: 0.9907733169 | H66: 0.1587030968 | J66: 55.99993507 | K66: -1.787615465 | L66: 6.122034106 | M66: 0.9979294133 | N66: 0.1383776292 | P66: N/A | Q66: N/A | R66: N/A | S66: N/A | T66: N/A
C67: 27 | D67: 44.46824236 | E67: -43.44669464 | F67: 12.16106143 | G67: 0.9896063872 | H67: 0.172650758 | J67: 56.39537169 | K67: -1.754004663 | L67: 5.973959571 | M67: 0.9969926823 | N67: 0.1678162285 | P67: N/A | Q67: N/A | R67: N/A | S67: N/A | T67: N/A
C68: 28 | D68: 44.13782947 | E68: -42.8095797 | F68: 12.17957798 | G68: 0.9889947078 | H68: 0.176898102 | J68: 55.6896998 | K68: -1.734812882 | L68: 6.021435016 | M68: 0.9961611347 | N68: 0.1893271227 | P68: N/A | Q68: N/A | R68: N/A | S68: N/A | T68: N/A
C69: 29 | D69: 56.24261658 | E69: -33.47320237 | F69: 9.934297242 | G69: 0.9814309312 | H69: 0.184467771 | J69: 56.09362673 | K69: -1.727235319 | L69: 6.044984681 | M69: 0.9959702696 | N69: 0.1938158056 | P69: N/A | Q69: N/A | R69: N/A | S69: N/A | T69: N/A
C70: 30 | D70: 44.89296573 | E70: -43.57663328 | F70: 12.21515199 | G70: 0.9904868002 | H70: 0.1628973552 | J70: 56.61142537 | K70: -1.76468917 | L70: 6.049561522 | M70: 0.9978073932 | N70: 0.1428083053 | P70: N/A | Q70: N/A | R70: N/A | S70: N/A | T70: N/A
C71: 31 | D71: 44.30246134 | E71: -44.34300082 | F71: 12.28737379 | G71: 0.990327258 | H71: 0.1613310262 | J71: 55.70367693 | K71: -1.811444821 | L71: 6.18640244 | M71: 0.9972482438 | N71: 0.1591815703 | P71: N/A | Q71: N/A | R71: N/A | S71: N/A | T71: N/A
C72: 32 | D72: 44.28228917 | E72: -43.79672128 | F72: 12.22871407 | G72: 0.9897197547 | H72: 0.1688307459 | J72: 55.89031727 | K72: -1.779391885 | L72: 6.088152709 | M72: 0.9968465971 | N72: 0.1710869291 | P72: N/A | Q72: N/A | R72: N/A | S72: N/A | T72: N/A
C73: 33 | D73: 44.36850234 | E73: -43.98485393 | F73: 12.23304564 | G73: 0.9900210568 | H73: 0.1661330868 | J73: 56.03927103 | K73: -1.786169106 | L73: 6.088413287 | M73: 0.9971947888 | N73: 0.1613354064 | P73: N/A | Q73: N/A | R73: N/A | S73: N/A | T73: N/A
C74: 34 | D74: 44.27802625 | E74: -44.37805504 | F74: 12.3347657 | G74: 0.9900799735 | H74: 0.1614661064 | J74: 55.71206505 | K74: -1.808285882 | L74: 6.211250795 | M74: 0.9972865666 | N74: 0.1579156787 | P74: N/A | Q74: N/A | R74: N/A | S74: N/A | T74: N/A
C75: 35 | D75: 43.66416271 | E75: -43.89490895 | F75: 12.30162191 | G75: 0.9897975152 | H75: 0.1651427556 | J75: 54.92036167 | K75: -1.793308085 | L75: 6.200559956 | M75: 0.9967458559 | N75: 0.1730531422 | P75: N/A | Q75: N/A | R75: N/A | S75: N/A | T75: N/A
C76: 36 | D76: 55.82439479 | E76: -33.54890657 | F76: 9.911437891 | G76: 0.9852605435 | H76: 0.1645768178 | J76: 55.89562068 | K76: -1.706494157 | L76: 5.92767574 | M76: 0.9983567258 | N76: 0.1241942062 | P76: N/A | Q76: N/A | R76: N/A | S76: N/A | T76: N/A
C77: 37 | D77: 44.64686559 | E77: -43.79551679 | F77: 12.19506664 | G77: 0.9899581498 | H77: 0.1682463303 | J77: 56.57936253 | K77: -1.768917021 | L77: 6.009817632 | M77: 0.9974044497 | N77: 0.1556517196 | P77: N/A | Q77: N/A | R77: N/A | S77: N/A | T77: N/A
C78: 38 | D78: 44.29232235 | E78: -43.23463823 | F78: 12.16317883 | G78: 0.9903239806 | H78: 0.1664362285 | J78: 56.06765382 | K78: -1.749003665 | L78: 5.992186963 | M78: 0.9975768372 | N78: 0.1504856777 | P78: N/A | Q78: N/A | R78: N/A | S78: N/A | T78: N/A
C79: 39 | D79: 57.06239925 | E79: -33.81402362 | F79: 9.891777559 | G79: 0.9855995435 | H79: 0.1631126702 | J79: 57.20597266 | K79: -1.706776956 | L79: 5.859292063 | M79: 0.9981045308 | N79: 0.1337671701 | P79: N/A | Q79: N/A | R79: N/A | S79: N/A | T79: N/A
C80: 40 | D80: 44.29028513 | E80: -43.79967532 | F80: 12.23345985 | G80: 0.9897416666 | H80: 0.1684491199 | J80: 55.90353177 | K80: -1.778960198 | L80: 6.090182062 | M80: 0.9969026698 | N80: 0.1695408239 | P80: N/A | Q80: N/A | R80: N/A | S80: N/A | T80: N/A
C81: 41 | D81: 55.90154644 | E81: -33.08564149 | F81: 9.876190066 | G81: 0.9829899317 | H81: 0.1779167271 | J81: 56.1480074 | K81: -1.656596366 | L81: 5.790837801 | M81: 0.9946861528 | N81: 0.2249796088 | P81: N/A | Q81: N/A | R81: N/A | S81: N/A | T81: N/A
C82: 42 | D82: 44.46993115 | E82: -43.46866931 | F82: 12.21666661 | G82: 0.990495706 | H82: 0.1627586257 | J82: 56.31152381 | K82: -1.754045599 | L82: 6.022702889 | M82: 0.998067825 | N82: 0.1341831371 | P82: N/A | Q82: N/A | R82: N/A | S82: N/A | T82: N/A
C83: 43 | D83: 45.14164918 | E83: -40.80818796 | F83: 11.93912091 | G83: 0.9886806904 | H83: 0.1903614321 | J83: 57.53927672 | K83: -1.619420642 | L83: 5.625588765 | M83: 0.9967443576 | N83: 0.1771162255 | P83: N/A | Q83: N/A | R83: N/A | S83: N/A | T83: N/A
C84: 44 | D84: 56.52252489 | E84: -34.3700111 | F84: 9.913953998 | G84: 0.9831831275 | H84: 0.1759135955 | J84: 56.64189626 | K84: -1.746298398 | L84: 5.921379598 | M84: 0.996005683 | N84: 0.1939048424 | P84: N/A | Q84: N/A | R84: N/A | S84: N/A | T84: N/A
C85: 45 | D85: 44.51309349 | E85: -43.41584285 | F85: 12.18263228 | G85: 0.9902710696 | H85: 0.1660908364 | J85: 56.28516744 | K85: -1.756865797 | L85: 6.012947511 | M85: 0.9975551567 | N85: 0.1510353529 | P85: N/A | Q85: N/A | R85: N/A | S85: N/A | T85: N/A
C86: 46 | D86: 55.7637139 | E86: -33.26991371 | F86: 9.905366101 | G86: 0.9844121929 | H86: 0.169469841 | J86: 55.93551046 | K86: -1.683044079 | L86: 5.884405675 | M86: 0.9968385989 | N86: 0.1726903927 | P86: N/A | Q86: N/A | R86: N/A | S86: N/A | T86: N/A
C87: 47 | D87: 56.78294274 | E87: -34.21849786 | F87: 9.92633438 | G87: 0.9820292165 | H87: 0.1816272127 | J87: 56.69126893 | K87: -1.758073606 | L87: 6.00897023 | M87: 0.9961602968 | N87: 0.189440831 | P87: N/A | Q87: N/A | R87: N/A | S87: N/A | T87: N/A
C88: 48 | D88: 43.80119511 | E88: -43.44410834 | F88: 12.2143428 | G88: 0.9904830847 | H88: 0.162962248 | J88: 55.29925047 | K88: -1.766866449 | L88: 6.082669566 | M88: 0.9975062889 | N88: 0.1521245901 | P88: N/A | Q88: N/A | R88: N/A | S88: N/A | T88: N/A
C89: 49 | D89: 55.91133086 | E89: -33.67203248 | F89: 9.892518803 | G89: 0.9829613634 | H89: 0.1776446027 | J89: 56.07604595 | K89: -1.698493881 | L89: 5.855096964 | M89: 0.9953102268 | N89: 0.2107410814 | P89: N/A | Q89: N/A | R89: N/A | S89: N/A | T89: N/A
C90: 50 | D90: 44.19225457 | E90: -42.69813835 | F90: 12.12278509 | G90: 0.9900032184 | H90: 0.1709010814 | J90: 55.98402448 | K90: -1.724084237 | L90: 5.939248593 | M90: 0.9972746681 | N90: 0.1599525849 | P90: N/A | Q90: N/A | R90: N/A | S90: N/A | T90: N/A
C91: 51 | D91: 56.6329372 | E91: -33.87647552 | F91: 9.897645538 | G91: 0.9855179367 | H91: 0.1634408347 | J91: 56.82624281 | K91: -1.709190179 | L91: 5.86020021 | M91: 0.997780672 | N91: 0.1447626343 | P91: N/A | Q91: N/A | R91: N/A | S91: N/A | T91: N/A
C92: 52 | D92: 56.29194623 | E92: -33.27444578 | F92: 9.886185903 | G92: 0.9847503911 | H92: 0.1680624061 | J92: 56.54117707 | K92: -1.670115649 | L92: 5.815167431 | M92: 0.9965456104 | N92: 0.1810464623 | P92: N/A | Q92: N/A | R92: N/A | S92: N/A | T92: N/A
C93: 53 | D93: 56.59542695 | E93: -33.74289853 | F93: 9.893702446 | G93: 0.9852550015 | H93: 0.1650349103 | J93: 56.72106355 | K93: -1.705170883 | L93: 5.868928577 | M93: 0.9978770243 | N93: 0.141528783 | P93: N/A | Q93: N/A | R93: N/A | S93: N/A | T93: N/A
C94: 54 | D94: 44.0605416 | E94: -42.75000093 | F94: 12.14366088 | G94: 0.9899652613 | H94: 0.1703461737 | J94: 55.49641933 | K94: -1.739247215 | L94: 6.018982751 | M94: 0.9967589212 | N94: 0.1739273403 | P94: N/A | Q94: N/A | R94: N/A | S94: N/A | T94: N/A
C95: 55 | D95: 43.98892494 | E95: -43.11457211 | F95: 12.19151901 | G95: 0.9891683734 | H95: 0.1749613741 | J95: 55.62905158 | K95: -1.745990581 | L95: 6.027317984 | M95: 0.9964156811 | N95: 0.1828768502 | P95: N/A | Q95: N/A | R95: N/A | S95: N/A | T95: N/A
C96: 56 | D96: 56.44850159 | E96: -33.65935497 | F96: 9.894192662 | G96: 0.9855540406 | H96: 0.1633162964 | J96: 56.55556046 | K96: -1.702361727 | L96: 5.875200778 | M96: 0.9982925086 | N96: 0.1268678805 | P96: N/A | Q96: N/A | R96: N/A | S96: N/A | T96: N/A
C97: 57 | D97: 44.02209107 | E97: -43.74956444 | F97: 12.23399843 | G97: 0.990366187 | H97: 0.1631677941 | J97: 55.39789575 | K97: -1.786045228 | L97: 6.131071542 | M97: 0.9971848806 | N97: 0.1613531433 | P97: N/A | Q97: N/A | R97: N/A | S97: N/A | T97: N/A
C98: 58 | D98: 56.4460786 | E98: -33.35412936 | F98: 9.85427877 | G98: 0.9850378631 | H98: 0.1672239937 | J98: 56.73120666 | K98: -1.658599008 | L98: 5.726361357 | M98: 0.9963479091 | N98: 0.1868487471 | P98: N/A | Q98: N/A | R98: N/A | S98: N/A | T98: N/A
C99: 59 | D99: 44.30435667 | E99: -42.75619207 | F99: 12.19883102 | G99: 0.9891408587 | H99: 0.1748673467 | J99: 55.91246781 | K99: -1.728293343 | L99: 6.019611251 | M99: 0.9965360753 | N99: 0.1798229296 | P99: N/A | Q99: N/A | R99: N/A | S99: N/A | T99: N/A
C100: 60 | D100: 55.99848361 | E100: -33.81280106 | F100: 9.913219672 | G100: 0.9849970682 | H100: 0.1660203433 | J100: 56.07326875 | K100: -1.720494815 | L100: 5.93127253 | M100: 0.9980881844 | N100: 0.1339570189 | P100: N/A | Q100: N/A | R100: N/A | S100: N/A | T100: N/A
C101: 61 | D101: 55.92763372 | E101: -33.19638228 | F101: 9.898199855 | G101: 0.9835105618 | H101: 0.1745645597 | J101: 55.95781694 | K101: -1.685621348 | L101: 5.906259448 | M101: 0.9967099961 | N101: 0.1760250298 | P101: N/A | Q101: N/A | R101: N/A | S101: N/A | T101: N/A
C102: 62 | D102: 44.20611441 | E102: -44.5882371 | F102: 12.29441902 | G102: 0.9902209545 | H102: 0.1619372969 | J102: 55.73662114 | K102: -1.818174299 | L102: 6.178865943 | M102: 0.9972792677 | N102: 0.1583251112 | P102: N/A | Q102: N/A | R102: N/A | S102: N/A | T102: N/A
C103: 63 | D103: 44.11250131 | E103: -42.88481724 | F103: 12.19407625 | G103: 0.9879042427 | H103: 0.1848897827 | J103: 55.75990256 | K103: -1.733691042 | L103: 6.016030517 | M103: 0.9952696861 | N103: 0.2103018942 | P103: N/A | Q103: N/A | R103: N/A | S103: N/A | T103: N/A
C104: 64 | D104: 43.83002369 | E104: -41.83109337 | F104: 12.08077561 | G104: 0.9905838081 | H104: 0.1675434349 | J104: 55.53536842 | K104: -1.68641362 | L104: 5.887049529 | M104: 0.9978555004 | N104: 0.1421424763 | P104: N/A | Q104: N/A | R104: N/A | S104: N/A | T104: N/A
C105: 65 | D105: 44.18446311 | E105: -43.13209934 | F105: 12.2091132 | G105: 0.9911451008 | H105: 0.157344492 | J105: 55.81719157 | K105: -1.745793439 | L105: 6.039804453 | M105: 0.9984903596 | N105: 0.1185024875 | P105: N/A | Q105: N/A | R105: N/A | S105: N/A | T105: N/A
C106: 66 | D106: 43.76286264 | E106: -44.46330948 | F106: 12.32652006 | G106: 0.9895432136 | H106: 0.1661663539 | J106: 55.02298879 | K106: -1.820572234 | L106: 6.241411156 | M106: 0.9964098728 | N106: 0.1815141622 | P106: N/A | Q106: N/A | R106: N/A | S106: N/A | T106: N/A
C107: 67 | D107: 44.34409204 | E107: -43.39682283 | F107: 12.21916886 | G107: 0.9904858533 | H107: 0.1627423016 | J107: 56.09051947 | K107: -1.75400296 | L107: 6.037994135 | M107: 0.9979512206 | N107: 0.1380976983 | P107: N/A | Q107: N/A | R107: N/A | S107: N/A | T107: N/A
C108: 68 | D108: 57.94666887 | E108: -33.87132098 | F108: 9.890341402 | G108: 0.9851635013 | H108: 0.16563505 | J108: 57.94399307 | K108: -1.718706878 | L108: 5.896006226 | M108: 0.9985118797 | N108: 0.1183262999 | P108: N/A | Q108: N/A | R108: N/A | S108: N/A | T108: N/A
C109: 69 | D109: 56.20513264 | E109: -32.4601922 | F109: 9.833023321 | G109: 0.9826387997 | H109: 0.1809133252 | J109: 56.52147359 | K109: -1.603228337 | L109: 5.66270723 | M109: 0.9935021576 | N109: 0.2502437686 | P109: N/A | Q109: N/A | R109: N/A | S109: N/A | T109: N/A
C110: 70 | D110: 56.65122288 | E110: -34.02141406 | F110: 9.904921302 | G110: 0.9847440774 | H110: 0.167638583 | J110: 56.80758341 | K110: -1.722136881 | L110: 5.888572843 | M110: 0.9972834936 | N110: 0.1600163336 | P110: N/A | Q110: N/A | R110: N/A | S110: N/A | T110: N/A
C111: 71 | D111: 44.43788227 | E111: -43.48148553 | F111: 12.27046695 | G111: 0.9912731133 | H111: 0.1538174441 | J111: 55.98062075 | K111: -1.762593609 | L111: 6.109732616 | M111: 0.998673681 | N111: 0.1107614802 | P111: N/A | Q111: N/A | R111: N/A | S111: N/A | T111: N/A
C112: 72 | D112: 56.23131947 | E112: -33.5496236 | F112: 9.893502925 | G112: 0.9835902541 | H112: 0.1742545466 | J112: 56.37249556 | K112: -1.694247458 | L112: 5.863915637 | M112: 0.9960923242 | N112: 0.1922240808 | P112: N/A | Q112: N/A | R112: N/A | S112: N/A | T112: N/A
C113: 73 | D113: 44.46420892 | E113: -43.32147141 | F113: 12.19920197 | G113: 0.9894536477 | H113: 0.1722874478 | J113: 56.2036681 | K113: -1.752010383 | L113: 6.023888329 | M113: 0.9968174709 | N113: 0.1723108384 | P113: N/A | Q113: N/A | R113: N/A | S113: N/A | T113: N/A
C114: 74 | D114: 56.03914081 | E114: -33.5087399 | F114: 9.909074771 | G114: 0.9847908676 | H114: 0.16727592 | J114: 56.09405302 | K114: -1.704509963 | L114: 5.926321004 | M114: 0.9979562096 | N114: 0.1385399808 | P114: N/A | Q114: N/A | R114: N/A | S114: N/A | T114: N/A
C115: 75 | D115: 43.88683004 | E115: -43.01731463 | F115: 12.11612473 | G115: 0.9903772804 | H115: 0.1679177663 | J115: 55.7882948 | K115: -1.736665312 | L115: 5.931558539 | M115: 0.997645537 | N115: 0.1486893291 | P115: N/A | Q115: N/A | R115: N/A | S115: N/A | T115: N/A
C116: 76 | D116: 56.0961708 | E116: -33.68335316 | F116: 9.898719311 | G116: 0.9856262084 | H116: 0.1627942657 | J116: 56.24117817 | K116: -1.70301209 | L116: 5.875916871 | M116: 0.9981802793 | N116: 0.1309744845 | P116: N/A | Q116: N/A | R116: N/A | S116: N/A | T116: N/A
C117: 77 | D117: 56.87807025 | E117: -33.20254968 | F117: 9.861460009 | G117: 0.985101859 | H117: 0.1666856366 | J117: 56.96167869 | K117: -1.667069694 | L117: 5.80068705 | M117: 0.9976878025 | N117: 0.1481232079 | P117: N/A | Q117: N/A | R117: N/A | S117: N/A | T117: N/A
C118: 78 | D118: 56.59012968 | E118: -33.4624189 | F118: 9.877649938 | G118: 0.9847732506 | H118: 0.1681438816 | J118: 56.78346558 | K118: -1.679724356 | L118: 5.810076473 | M118: 0.996838739 | N118: 0.1732049497 | P118: N/A | Q118: N/A | R118: N/A | S118: N/A | T118: N/A
C119: 79 | D119: 44.26948556 | E119: -43.49553696 | F119: 12.25881557 | G119: 0.988930469 | H119: 0.1739486991 | J119: 55.71213485 | K119: -1.76831826 | L119: 6.121740017 | M119: 0.9960868317 | N119: 0.1904099789 | P119: N/A | Q119: N/A | R119: N/A | S119: N/A | T119: N/A
C120: 80 | D120: 56.29000027 | E120: -33.75436459 | F120: 9.922003286 | G120: 0.9836750912 | H120: 0.1730746966 | J120: 56.23168333 | K120: -1.730177148 | L120: 5.989448241 | M120: 0.997604319 | N120: 0.1496440606 | P120: N/A | Q120: N/A | R120: N/A | S120: N/A | T120: N/A
C121: 81 | D121: 43.58721639 | E121: -42.40335019 | F121: 12.12571078 | G121: 0.9893337959 | H121: 0.1764625247 | J121: 55.32543089 | K121: -1.710839532 | L121: 5.935739188 | M121: 0.9966651397 | N121: 0.177016531 | P121: N/A | Q121: N/A | R121: N/A | S121: N/A | T121: N/A
C122: 82 | D122: 44.58439865 | E122: -43.14456456 | F122: 12.24322401 | G122: 0.9903123404 | H122: 0.1632508857 | J122: 56.28482318 | K122: -1.740999888 | L122: 6.047992163 | M122: 0.9979483557 | N122: 0.1381402743 | P122: N/A | Q122: N/A | R122: N/A | S122: N/A | T122: N/A
C123: 83 | D123: 56.50075035 | E123: -33.36249562 | F123: 9.867297448 | G123: 0.9863958679 | H123: 0.1590420878 | J123: 56.86449014 | K123: -1.659241575 | L123: 5.736295607 | M123: 0.9973535102 | N123: 0.1589127058 | P123: N/A | Q123: N/A | R123: N/A | S123: N/A | T123: N/A
C124: 84 | D124: 57.18796383 | E124: -33.03222116 | F124: 9.85558224 | G124: 0.984437823 | H124: 0.1705637325 | J124: 57.24770926 | K124: -1.65763673 | L124: 5.792854522 | M124: 0.9971074094 | N124: 0.1657748673 | P124: N/A | Q124: N/A | R124: N/A | S124: N/A | T124: N/A
C125: 85 | D125: 56.20589834 | E125: -33.56695682 | F125: 9.905895358 | G125: 0.984998902 | H125: 0.1661875134 | J125: 56.30557916 | K125: -1.703149995 | L125: 5.906091723 | M125: 0.997874336 | N125: 0.1414076698 | P125: N/A | Q125: N/A | R125: N/A | S125: N/A | T125: N/A
C126: 86 | D126: 56.5011418 | E126: -33.42502714 | F126: 9.896823676 | G126: 0.9844644464 | H126: 0.1693921144 | J126: 56.60440931 | K126: -1.691836514 | L126: 5.882591476 | M126: 0.9972311173 | N126: 0.1615945879 | P126: N/A | Q126: N/A | R126: N/A | S126: N/A | T126: N/A
C127: 87 | D127: 56.46921719 | E127: -33.76033194 | F127: 9.906435707 | G127: 0.9836895855 | H127: 0.1733899572 | J127: 56.4767199 | K127: -1.719335997 | L127: 5.932945474 | M127: 0.9970979391 | N127: 0.1651134161 | P127: N/A | Q127: N/A | R127: N/A | S127: N/A | T127: N/A
C128: 88 | D128: 44.13967311 | E128: -43.97585123 | F128: 12.27537518 | G128: 0.985383098 | H128: 0.199417934 | J128: 55.80172176 | K128: -1.782749445 | L128: 6.11487925 | M128: 0.992747361 | N128: 0.259727734 | P128: N/A | Q128: N/A | R128: N/A | S128: N/A | T128: N/A
C129: 89 | D129: 56.17052624 | E129: -33.93526251 | F129: 9.918030502 | G129: 0.9823996529 | H129: 0.1799295173 | J129: 56.27263522 | K129: -1.727029892 | L129: 5.935787432 | M129: 0.9953406843 | N129: 0.209374669 | P129: N/A | Q129: N/A | R129: N/A | S129: N/A | T129: N/A
C130: 90 | D130: 44.03195586 | E130: -43.56798096 | F130: 12.21132708 | G130: 0.9913460817 | H130: 0.1554470382 | J130: 55.547502 | K130: -1.772753863 | L130: 6.08362026 | M130: 0.9983342243 | N130: 0.1242763057 | P130: N/A | Q130: N/A | R130: N/A | S130: N/A | T130: N/A
C131: 91 | D131: 44.1936051 | E131: -42.73210646 | F131: 12.16093314 | G131: 0.9902991294 | H131: 0.1667448033 | J131: 55.75193242 | K131: -1.732051856 | L131: 6.005597611 | M131: 0.9974077958 | N131: 0.1555769978 | P131: N/A | Q131: N/A | R131: N/A | S131: N/A | T131: N/A
C132: 92 | D132: 57.06223783 | E132: -33.36290199 | F132: 9.882877045 | G132: 0.9830945976 | H132: 0.1771859285 | J132: 57.06452991 | K132: -1.689435966 | L132: 5.876258244 | M132: 0.9963227683 | N132: 0.1863559813 | P132: N/A | Q132: N/A | R132: N/A | S132: N/A | T132: N/A
C133: 93 | D133: 56.49221183 | E133: -33.59272919 | F133: 9.890557997 | G133: 0.985167026 | H133: 0.1656098643 | J133: 56.64770415 | K133: -1.69424496 | L133: 5.852712455 | M133: 0.9975793889 | N133: 0.1512456902 | P133: N/A | Q133: N/A | R133: N/A | S133: N/A | T133: N/A
C134: 94 | D134: 44.03277505 | E134: -42.85114286 | F134: 12.08914149 | G134: 0.9905944903 | H134: 0.1671027372 | J134: 55.96308564 | K134: -1.729224294 | L134: 5.902751568 | M134: 0.9978185024 | N134: 0.1432759186 | P134: N/A | Q134: N/A | R134: N/A | S134: N/A | T134: N/A
C135: 95 | D135: 44.53795289 | E135: -44.60042706 | F135: 12.34484642 | G135: 0.9903460567 | H135: 0.1588602867 | J135: 56.01477418 | K135: -1.817181816 | L135: 6.220074697 | M135: 0.9975849157 | N135: 0.1489086076 | P135: N/A | Q135: N/A | R135: N/A | S135: N/A | T135: N/A
C136: 96 | D136: 56.24705 | E136: -33.93101467 | F136: 9.92428475 | G136: 0.9832386382 | H136: 0.1753536553 | J136: 56.27633994 | K136: -1.734388035 | L136: 5.971165141 | M136: 0.9966716625 | N136: 0.1765940753 | P136: N/A | Q136: N/A | R136: N/A | S136: N/A | T136: N/A
C137: 97 | D137: 56.23046417 | E137: -33.60511591 | F137: 9.876837022 | G137: 0.9847593436 | H137: 0.1682418457 | J137: 56.51248225 | K137: -1.680790071 | L137: 5.78352682 | M137: 0.9962901896 | N137: 0.1878857107 | P137: N/A | Q137: N/A | R137: N/A | S137: N/A | T137: N/A
C138: 98 | D138: 43.9537155 | E138: -44.07723029 | F138: 12.19022757 | G138: 0.9903671175 | H138: 0.1649489902 | J138: 55.71082284 | K138: -1.790829589 | L138: 6.05207879 | M138: 0.9973916272 | N138: 0.1557778471 | P138: N/A | Q138: N/A | R138: N/A | S138: N/A | T138: N/A
C139: 99 | D139: 56.17182072 | E139: -33.68918544 | F139: 9.920699124 | G139: 0.9810341535 | H139: 0.186836062 | J139: 56.00812477 | K139: -1.733291103 | L139: 6.015060809 | M139: 0.9955258675 | N139: 0.2045094162 | P139: N/A | Q139: N/A | R139: N/A | S139: N/A | T139: N/A
C140: 100 | D140: 44.37604309 | E140: -43.74494415 | F140: 12.28405733 | G140: 0.9906279856 | H140: 0.1589114053 | J140: 55.81170136 | K140: -1.779497831 | L140: 6.150168449 | M140: 0.9978225844 | N140: 0.1417555371 | P140: N/A | Q140: N/A | R140: N/A | S140: N/A | T140: N/A

Sheet Calculations
C1: This worksheet is used for intermediate calculations. All data will be overwritten
S3: Partial Derivatives | W3: X'X
B4: Point | C4: Input | D4: Output | E4: Fitted Function | F4: Residuals | H4: Simulation Coefficients | I4: Coef 1 | J4: Coef 2 | K4: Coef 3 | S4: Coef 1 | T4: Coef 2 | U4: Coef 3 | W4: =SUMPRODUCT($S$5:$S$84,$S$5:$S$84) -> 80 | X4: =SUMPRODUCT($S$5:$S$84,$T$5:$T$84) -> 5305.524759 | Y4: =SUMPRODUCT($S$5:$S$84,$U$5:$U$84) -> 1639.956425
B5: 1 | C5: 0 | D5: 56.99078706 | E5: =IF($C$5>K8,I8+J8*(K8-$C$5)^2,I8) -> 55.81170136 | F5: =$D$5-$E$5 -> 1.179085699 | I5: 56.1 | J5: -1.74 | K5: 6 | S5: =1 -> 1 | T5: =IF($C$5>K8,(K8-$C$5)^2,0) -> 0 | U5: =IF($C$5>K8,J8*2*(K8-$C$5),0) -> 0 | W5: =SUMPRODUCT($T$5:$T$84,$S$5:$S$84) -> 5305.524759 | X5: =SUMPRODUCT($T$5:$T$84,$T$5:$T$84) -> 919661.465 | Y5: =SUMPRODUCT($T$5:$T$84,$U$5:$U$84) -> 241535.6781
B6: 2 | C6: 0 | D6: 56.03073066 | E6: =IF($C$6>K8,I8+J8*(K8-$C$6)^2,I8) -> 55.81170136 | F6: =$D$6-$E$6 -> 0.2190292969 | S6: =1 -> 1 | T6: =IF($C$6>K8,(K8-$C$6)^2,0) -> 0 | U6: =IF($C$6>K8,J8*2*(K8-$C$6),0) -> 0 | W6: =SUMPRODUCT($U$5:$U$84,$S$5:$S$84) -> 1639.956425 | X6: =SUMPRODUCT($U$5:$U$84,$T$5:$T$84) -> 241535.6781 | Y6: =SUMPRODUCT($U$5:$U$84,$U$5:$U$84) -> 67202.16474
B7: 3 | C7: 0 | D7: 56.57861034 | E7: =IF($C$7>K8,I8+J8*(K8-$C$7)^2,I8) -> 55.81170136 | F7: =$D$7-$E$7 -> 0.7669089821 | H7: Estimated Coefficients | I7: Coef 1 | J7: Coef 2 | K7: Coef 3 | M7: SSE | N7: R-Squared | S7: =1 -> 1 | T7: =IF($C$7>K8,(K8-$C$7)^2,0) -> 0 | U7: =IF($C$7>K8,J8*2*(K8-$C$7),0) -> 0 | W7: inv(X'X)
B8: 4 | C8: 0 | D8: 57.98927819 | E8: =IF($C$8>K8,I8+J8*(K8-$C$8)^2,I8) -> 55.81170136 | F8: =$D$8-$E$8 -> 2.177576829 | I8: 55.81170136 | J8: -1.779497831 | K8: 6.150168449 | M8: =SUMPRODUCT($F$5:$F$84,$F$5:$F$84) -> 3923.5635 | N8: =1-$M$8/(SUMPRODUCT($D$5:$D$84,$D$5:$D$84)-COUNT($D$5:$D$84)*AVERAGE($D$5:$D$84)^2) -> 0.9978225844 | S8: =1 -> 1 | T8: =IF($C$8>K8,(K8-$C$8)^2,0) -> 0 | U8: =IF($C$8>K8,J8*2*(K8-$C$8),0) -> 0 | W8: =MINVERSE(W4:Y6) -> 0.03007108545 | X8: 0.0003434910398 | Y8: -0.001968398065
B9: 5 | C9: 0 | D9: 57.15910345 | E9: =IF($C$9>K8,I8+J8*(K8-$C$9)^2,I8) -> 55.81170136 | F9: =$D$9-$E$9 -> 1.347402091 | S9: =1 -> 1 | T9: =IF($C$9>K8,(K8-$C$9)^2,0) -> 0 | U9: =IF($C$9>K8,J8*2*(K8-$C$9),0) -> 0 | W9: 0.0003434910398 | X9: 2.33250942e-05 | Y9: -9.221656484e-05
B10: 6 | C10: 0 | D10: 56.54085508 | E10: =IF($C$10>K8,I8+J8*(K8-$C$10)^2,I8) -> 55.81170136 | F10: =$D$10-$E$10 -> 0.7291537241 | H10: Error Analysis | I10: # of Obs, n | J10: # of Regrs, K | K10: sigma | S10: =1 -> 1 | T10: =IF($C$10>K8,(K8-$C$10)^2,0) -> 0 | U10: =IF($C$10>K8,J8*2*(K8-$C$10),0) -> 0 | W10: -0.001968398065 | X10: -9.221656484e-05 | Y10: 0.0003943574984
B11: 7 | C11: 0 | D11: 53.54499474 | E11: =IF($C$11>K8,I8+J8*(K8-$C$11)^2,I8) -> 55.81170136 | F11: =$D$11-$E$11 -> -2.266706618 | I11: 80 | J11: 3 | K11: =SQRT(M8/(I11-J11)) -> 7.138303029 | L11: *sigma^2 = SSE/(n-K) | S11: =1 -> 1 | T11: =IF($C$11>K8,(K8-$C$11)^2,0) -> 0 | U11: =IF($C$11>K8,J8*2*(K8-$C$11),0) -> 0
B12: 8 | C12: 0 | D12: 57.32168853 | E12: =IF($C$12>K8,I8+J8*(K8-$C$12)^2,I8) -> 55.81170136 | F12: =$D$12-$E$12 -> 1.509987168 | S12: =1 -> 1 | T12: =IF($C$12>K8,(K8-$C$12)^2,0) -> 0 | U12: =IF($C$12>K8,J8*2*(K8-$C$12),0) -> 0
B13: 9 | C13: 0 | D13: 59.17963559 | E13: =IF($C$13>K8,I8+J8*(K8-$C$13)^2,I8) -> 55.81170136 | F13: =$D$13-$E$13 -> 3.367934232 | H13: Standard Errors | I13: Coef 1 | J13: Coef 2 | K13: Coef 3 | S13: =1 -> 1 | T13: =IF($C$13>K8,(K8-$C$13)^2,0) -> 0 | U13: =IF($C$13>K8,J8*2*(K8-$C$13),0) -> 0
B14: 10 | C14: 0 | D14: 54.15019951 | E14: =IF($C$14>K8,I8+J8*(K8-$C$14)^2,I8) -> 55.81170136 | F14: =$D$14-$E$14 -> -1.661501849 | I14: =SQRT(W8)*$K$11 -> 1.237854309 | J14: =SQRT(X9)*$K$11 -> 0.0344751912 | K14: =SQRT(Y10)*$K$11 -> 0.1417555371 | S14: =1 -> 1 | T14: =IF($C$14>K8,(K8-$C$14)^2,0) -> 0 | U14: =IF($C$14>K8,J8*2*(K8-$C$14),0) -> 0
B15: 11 | C15: 0 | D15: 55.34673928 | E15: =IF($C$15>K8,I8+J8*(K8-$C$15)^2,I8) -> 55.81170136 | F15: =$D$15-$E$15 -> -0.4649620836 | S15: =1 -> 1 | T15: =IF($C$15>K8,(K8-$C$15)^2,0) -> 0 | U15: =IF($C$15>K8,J8*2*(K8-$C$15),0) -> 0
B16: 12 | C16: 0 | D16: 56.17891755 | E16: =IF($C$16>K8,I8+J8*(K8-$C$16)^2,I8) -> 55.81170136 | F16: =$D$16-$E$16 -> 0.3672161935 | S16: =1 -> 1 | T16: =IF($C$16>K8,(K8-$C$16)^2,0) -> 0 | U16: =IF($C$16>K8,J8*2*(K8-$C$16),0) -> 0
B17: 13 | C17: 0 | D17: 53.07455879 | E17: =IF($C$17>K8,I8+J8*(K8-$C$17)^2,I8) -> 55.81170136 | F17: =$D$17-$E$17 -> -2.737142567 | S17: =1 -> 1 | T17: =IF($C$17>K8,(K8-$C$17)^2,0) -> 0 | U17: =IF($C$17>K8,J8*2*(K8-$C$17),0) -> 0
B18: 14 | C18: 0 | D18: 54.20075455 | E18: =IF($C$18>K8,I8+J8*(K8-$C$18)^2,I8) -> 55.81170136 | F18: =$D$18-$E$18 -> -1.610946809 | S18: =1 -> 1 | T18: =IF($C$18>K8,(K8-$C$18)^2,0) -> 0 | U18: =IF($C$18>K8,J8*2*(K8-$C$18),0) -> 0
B19: 15 | C19: 0 | D19: 52.82481276 | E19: =IF($C$19>K8,I8+J8*(K8-$C$19)^2,I8) -> 55.81170136 | F19: =$D$19-$E$19 -> -2.986888604 | S19: =1 -> 1 | T19: =IF($C$19>K8,(K8-$C$19)^2,0) -> 0 | U19: =IF($C$19>K8,J8*2*(K8-$C$19),0) -> 0
B20: 16 | C20: 0 | D20: 54.98923189 | E20: =IF($C$20>K8,I8+J8*(K8-$C$20)^2,I8) -> 55.81170136 | F20: =$D$20-$E$20 -> -0.8224694735 | S20: =1 -> 1 | T20: =IF($C$20>K8,(K8-$C$20)^2,0) -> 0 | U20: =IF($C$20>K8,J8*2*(K8-$C$20),0) -> 0
B21: 17 | C21: 5.25 | D21: 58.8363927 | E21: =IF($C$21>K8,I8+J8*(K8-$C$21)^2,I8) -> 55.81170136 | F21: =$D$21-$E$21 -> 3.024691342 | S21: =1 -> 1 | T21: =IF($C$21>K8,(K8-$C$21)^2,0) -> 0 | U21: =IF($C$21>K8,J8*2*(K8-$C$21),0) -> 0
B22: 18 | C22: 5.25 | D22: 58.62386323 | E22: =IF($C$22>K8,I8+J8*(K8-$C$22)^2,I8) -> 55.81170136 | F22: =$D$22-$E$22 -> 2.812161874 | S22: =1 -> 1 | T22: =IF($C$22>K8,(K8-$C$22)^2,0) -> 0 | U22: =IF($C$22>K8,J8*2*(K8-$C$22),0) -> 0
B23: 19 | C23: 5.25 | D23: 57.70601927 | E23: =IF($C$23>K8,I8+J8*(K8-$C$23)^2,I8) -> 55.81170136 | F23: =$D$23-$E$23 -> 1.89431791 | S23: =1 -> 1 | T23: =IF($C$23>K8,(K8-$C$23)^2,0) -> 0 | U23: =IF($C$23>K8,J8*2*(K8-$C$23),0) -> 0
B24: 20 | C24: 5.25 | D24: 60.14605626 | E24: =IF($C$24>K8,I8+J8*(K8-$C$24)^2,I8) -> 55.81170136 | F24: =$D$24-$E$24 -> 4.334354899 | S24: =1 -> 1 | T24: =IF($C$24>K8,(K8-$C$24)^2,0) -> 0 | U24: =IF($C$24>K8,J8*2*(K8-$C$24),0) -> 0
B25: 21 | C25: 5.25 | D25: 54.24125488 | E25: =IF($C$25>K8,I8+J8*(K8-$C$25)^2,I8) -> 55.81170136 | F25: =$D$25-$E$25 -> -1.570446484 | S25: =1 -> 1 | T25: =IF($C$25>K8,(K8-$C$25)^2,0) -> 0 | U25: =IF($C$25>K8,J8*2*(K8-$C$25),0) -> 0
B26: 22 | C26: 5.25 | D26: 54.95169433 | E26: =IF($C$26>K8,I8+J8*(K8-$C$26)^2,I8) -> 55.81170136 | F26: =$D$26-$E$26 -> -0.8600070314 | S26: =1 -> 1 | T26: =IF($C$26>K8,(K8-$C$26)^2,0) -> 0 | U26: =IF($C$26>K8,J8*2*(K8-$C$26),0) -> 0
B27: 23 | C27: 5.25 | D27: 51.46482936 | E27: =IF($C$27>K8,I8+J8*(K8-$C$27)^2,I8) -> 55.81170136 | F27: =$D$27-$E$27 -> -4.346871999 | S27: =1 -> 1 | T27: =IF($C$27>K8,(K8-$C$27)^2,0) -> 0 | U27: =IF($C$27>K8,J8*2*(K8-$C$27),0) -> 0
B28: 24 | C28: 5.25 | D28: 55.7616361 | E28: =IF($C$28>K8,I8+J8*(K8-$C$28)^2,I8) -> 55.81170136 | F28: =$D$28-$E$28 -> -0.05006525989 | S28: =1 -> 1 | T28: =IF($C$28>K8,(K8-$C$28)^2,0) -> 0 | U28: =IF($C$28>K8,J8*2*(K8-$C$28),0) -> 0
B29: 25 | C29: 5.25 | D29: 55.01961726 | E29: =IF($C$29>K8,I8+J8*(K8-$C$29)^2,I8) -> 55.81170136 | F29: =$D$29-$E$29 -> -0.7920841017 | S29: =1 -> 1 | T29: =IF($C$29>K8,(K8-$C$29)^2,0) -> 0 | U29: =IF($C$29>K8,J8*2*(K8-$C$29),0) -> 0
B30: 26 | C30: 5.25 | D30: 54.41662178 | E30: =IF($C$30>K8,I8+J8*(K8-$C$30)^2,I8) -> 55.81170136 | F30: =$D$30-$E$30 -> -1.395079582 | S30: =1 -> 1 | T30: =IF($C$30>K8,(K8-$C$30)^2,0) -> 0 | U30: =IF($C$30>K8,J8*2*(K8-$C$30),0) -> 0
B31: 27 | C31: 5.25 | D31: 58.82355397 | E31: =IF($C$31>K8,I8+J8*(K8-$C$31)^2,I8) -> 55.81170136 | F31: =$D$31-$E$31 -> 3.011852611 | S31: =1 -> 1 | T31: =IF($C$31>K8,(K8-$C$31)^2,0) -> 0 | U31: =IF($C$31>K8,J8*2*(K8-$C$31),0) -> 0
B32: 28 | C32: 5.25 | D32: 56.76944064 | E32: =IF($C$32>K8,I8+J8*(K8-$C$32)^2,I8) -> 55.81170136 | F32: =$D$32-$E$32 -> 0.9577392776 | S32: =1 -> 1 | T32: =IF($C$32>K8,(K8-$C$32)^2,0) -> 0 | U32: =IF($C$32>K8,J8*2*(K8-$C$32),0) -> 0
B33: 29 | C33: 5.25 | D33: 57.42089521 | E33: =IF($C$33>K8,I8+J8*(K8-$C$33)^2,I8) -> 55.81170136 | F33: =$D$33-$E$33 -> 1.609193848 | S33: =1 -> 1 | T33: =IF($C$33>K8,(K8-$C$33)^2,0) -> 0 | U33: =IF($C$33>K8,J8*2*(K8-$C$33),0) -> 0
B34: 30 | C34: 5.25 | D34: 54.26742306 | E34: =IF($C$34>K8,I8+J8*(K8-$C$34)^2,I8) -> 55.81170136 | F34: =$D$34-$E$34 -> -1.544278304 | S34: =1 -> 1 | T34: =IF($C$34>K8,(K8-$C$34)^2,0) -> 0 | U34: =IF($C$34>K8,J8*2*(K8-$C$34),0) -> 0
B35: 31 | C35: 5.25 | D35: 53.82854612 | E35: =IF($C$35>K8,I8+J8*(K8-$C$35)^2,I8) -> 55.81170136 | F35: =$D$35-$E$35 -> -1.983155242 | S35: =1 -> 1 | T35: =IF($C$35>K8,(K8-$C$35)^2,0) -> 0 | U35: =IF($C$35>K8,J8*2*(K8-$C$35),0) -> 0
B36: 32 | C36: 5.25 | D36: 58.01267867 | E36: =IF($C$36>K8,I8+J8*(K8-$C$36)^2,I8) -> 55.81170136 | F36: =$D$36-$E$36 -> 2.200977312 | S36: =1 -> 1 | T36: =IF($C$36>K8,(K8-$C$36)^2,0) -> 0 | U36: =IF($C$36>K8,J8*2*(K8-$C$36),0) -> 0
B37: 33 | C37: 10.5 | D37: 21.15545018 | E37: =IF($C$37>K8,I8+J8*(K8-$C$37)^2,I8) -> 22.14176146 | F37: =$D$37-$E$37 -> -0.9863112787 | S37: =1 -> 1 | T37: =IF($C$37>K8,(K8-$C$37)^2,0) -> 18.92103453 | U37: =IF($C$37>K8,J8*2*(K8-$C$37),0) -> 15.48103162
B38: 34 | C38: 10.5 | D38: 20.90030192 | E38: =IF($C$38>K8,I8+J8*(K8-$C$38)^2,I8) -> 22.14176146 | F38: =$D$38-$E$38 -> -1.241459541 | S38: =1 -> 1 | T38: =IF($C$38>K8,(K8-$C$38)^2,0) -> 18.92103453 | U38: =IF($C$38>K8,J8*2*(K8-$C$38),0) -> 15.48103162
B39: 35 | C39: 10.5 | D39: 21.02819109 | E39: =IF($C$39>K8,I8+J8*(K8-$C$39)^2,I8) -> 22.14176146 | F39: =$D$39-$E$39 -> -1.113570364 | S39: =1 -> 1 | T39: =IF($C$39>K8,(K8-$C$39)^2,0) -> 18.92103453 | U39: =IF($C$39>K8,J8*2*(K8-$C$39),0) -> 15.48103162
B40: 36 | C40: 10.5 | D40: 21.05726811 | E40: =IF($C$40>K8,I8+J8*(K8-$C$40)^2,I8) -> 22.14176146 | F40: =$D$40-$E$40 -> -1.08449335 | S40: =1 -> 1 | T40: =IF($C$40>K8,(K8-$C$40)^2,0) -> 18.92103453 | U40: =IF($C$40>K8,J8*2*(K8-$C$40),0) -> 15.48103162
B41: 37 | C41: 10.5 | D41: 21.59171611 | E41: =IF($C$41>K8,I8+J8*(K8-$C$41)^2,I8) -> 22.14176146 | F41: =$D$41-$E$41 -> -0.5500453506 | S41: =1 -> 1 | T41: =IF($C$41>K8,(K8-$C$41)^2,0) -> 18.92103453 | U41: =IF($C$41>K8,J8*2*(K8-$C$41),0) -> 15.48103162
B42: 38 | C42: 10.5 | D42: 20.84586295 | E42: =IF($C$42>K8,I8+J8*(K8-$C$42)^2,I8) -> 22.14176146 | F42: =$D$42-$E$42 -> -1.295898511 | S42: =1 -> 1 | T42: =IF($C$42>K8,(K8-$C$42)^2,0) -> 18.92103453 | U42: =IF($C$42>K8,J8*2*(K8-$C$42),0) -> 15.48103162
B43: 39 | C43: 10.5 | D43: 21.15957542 | E43: =IF($C$43>K8,I8+J8*(K8-$C$43)^2,I8) -> 22.14176146 | F43: =$D$43-$E$43 -> -0.9821860357 | S43: =1 -> 1 | T43: =IF($C$43>K8,(K8-$C$43)^2,0) -> 18.92103453 | U43: =IF($C$43>K8,J8*2*(K8-$C$43),0) -> 15.48103162
B44: 40 | C44: 10.5 | D44: 21.46175546 | E44: =IF($C$44>K8,I8+J8*(K8-$C$44)^2,I8) -> 22.14176146 | F44: =$D$44-$E$44 -> -0.6800060001 | S44: =1 -> 1 | T44: =IF($C$44>K8,(K8-$C$44)^2,0) -> 18.92103453 | U44: =IF($C$44>K8,J8*2*(K8-$C$44),0) -> 15.48103162
B45: 41 | C45: 10.5 | D45: 21.43142925 | E45: =IF($C$45>K8,I8+J8*(K8-$C$45)^2,I8) -> 22.14176146 | F45: =$D$45-$E$45 -> -0.710332204 | S45: =1 -> 1 | T45: =IF($C$45>K8,(K8-$C$45)^2,0) -> 18.92103453 | U45: =IF($C$45>K8,J8*2*(K8-$C$45),0) -> 15.48103162
B46: 42 | C46: 10.5 | D46: 21.59145131 | E46: =IF($C$46>K8,I8+J8*(K8-$C$46)^2,I8) -> 22.14176146 | F46: =$D$46-$E$46 -> -0.5503101505 | S46: =1 -> 1 | T46: =IF($C$46>K8,(K8-$C$46)^2,0) -> 18.92103453 | U46: =IF($C$46>K8,J8*2*(K8-$C$46),0) -> 15.48103162
B47: 43 | C47: 10.5 | D47: 21.50714899 | E47: =IF($C$47>K8,I8+J8*(K8-$C$47)^2,I8) -> 22.14176146 | F47: =$D$47-$E$47 -> -0.6346124637 | S47: =1 -> 1 | T47: =IF($C$47>K8,(K8-$C$47)^2,0) -> 18.92103453 | U47: =IF($C$47>K8,J8*2*(K8-$C$47),0) -> 15.48103162
B48: 44 | C48: 10.5 | D48: 22.04058094 | E48: =IF($C$48>K8,I8+J8*(K8-$C$48)^2,I8) -> 22.14176146 | F48: =$D$48-$E$48 -> -0.1011805177 | S48: =1 -> 1 | T48: =IF($C$48>K8,(K8-$C$48)^2,0) -> 18.92103453 | U48: =IF($C$48>K8,J8*2*(K8-$C$48),0) -> 15.48103162
B49: 45 | C49: 10.5 | D49: 22.64869271 | E49: =IF($C$49>K8,I8+J8*(K8-$C$49)^2,I8) -> 22.14176146 | F49: =$D$49-$E$49 -> 0.5069312531 | S49: =1 -> 1 | T49: =IF($C$49>K8,(K8-$C$49)^2,0) -> 18.92103453 | U49: =IF($C$49>K8,J8*2*(K8-$C$49),0) -> 15.48103162
B50: 46 | C50: 10.5 | D50: 19.65759656 | E50: =IF($C$50>K8,I8+J8*(K8-$C$50)^2,I8) -> 22.14176146 | F50: =$D$50-$E$50 -> -2.484164898 | S50: =1 -> 1 | T50: =IF($C$50>K8,(K8-$C$50)^2,0) -> 18.92103453 | U50: =IF($C$50>K8,J8*2*(K8-$C$50),0) -> 15.48103162
B51: 47 | C51: 10.5 | D51: 20.94747935 | E51: =IF($C$51>K8,I8+J8*(K8-$C$51)^2,I8) -> 22.14176146 | F51: =$D$51-$E$51 -> -1.19428211 | S51: =1 -> 1 | T51: =IF($C$51>K8,(K8-$C$51)^2,0) -> 18.92103453 | U51: =IF($C$51>K8,J8*2*(K8-$C$51),0) -> 15.48103162
B52: 48 | C52: 10.5 | D52: 18.63712004 | E52: =IF($C$52>K8,I8+J8*(K8-$C$52)^2,I8) -> 22.14176146 | F52: =$D$52-$E$52 -> -3.504641418 | S52: =1 -> 1 | T52: =IF($C$52>K8,(K8-$C$52)^2,0) -> 18.92103453 | U52: =IF($C$52>K8,J8*2*(K8-$C$52),0) -> 15.48103162
B53: 49 | C53: 15.75 | D53: -102.9753351 | E53: =IF($C$53>K8,I8+J8*(K8-$C$53)^2,I8) -> -108.1810635 | F53: =$D$53-$E$53 -> 5.205728456 | S53: =1 -> 1 | T53: =IF($C$53>K8,(K8-$C$53)^2,0) -> 92.15676582 | U53: =IF($C$53>K8,J8*2*(K8-$C$53),0) -> 34.16575885
B54: 50 | C54: 15.75 | D54: -100.6061011 | E54: =IF($C$54>K8,I8+J8*(K8-$C$54)^2,I8) -> -108.1810635 | F54: =$D$54-$E$54 -> 7.57496245 | S54: =1 -> 1 | T54: =IF($C$54>K8,(K8-$C$54)^2,0) -> 92.15676582 | U54: =IF($C$54>K8,J8*2*(K8-$C$54),0) -> 34.16575885
B55: 51 | C55: 15.75 | D55: -111.9669329 | E55: =IF($C$55>K8,I8+J8*(K8-$C$55)^2,I8) -> -108.1810635 | F55: =$D$55-$E$55 -> -3.785869372 | S55: =1 -> 1 | T55: =IF($C$55>K8,(K8-$C$55)^2,0) -> 92.15676582 | U55: =IF($C$55>K8,J8*2*(K8-$C$55),0) -> 34.16575885
B56: 52 | C56: 15.75 | D56: -118.1281068 | E56: =IF($C$56>K8,I8+J8*(K8-$C$56)^2,I8) -> -108.1810635 | F56: =$D$56-$E$56 -> -9.947043248 | S56: =1 -> 1 | T56: =IF($C$56>K8,(K8-$C$56)^2,0) -> 92.15676582 | U56: =IF($C$56>K8,J8*2*(K8-$C$56),0) -> 34.16575885
B57: 53 | C57: 15.75 | D57: -107.8531095 | E57: =IF($C$57>K8,I8+J8*(K8-$C$57)^2,I8) -> -108.1810635 | F57: =$D$57-$E$57 -> 0.3279540281 | S57: =1 -> 1 | T57: =IF($C$57>K8,(K8-$C$57)^2,0) -> 92.15676582 | U57: =IF($C$57>K8,J8*2*(K8-$C$57),0) -> 34.16575885
B58: 54 | C58: 15.75 | D58: -106.4780367 | E58: =IF($C$58>K8,I8+J8*(K8-$C$58)^2,I8) -> -108.1810635 | F58: =$D$58-$E$58 -> 1.703026808 | S58: =1 -> 1 | T58: =IF($C$58>K8,(K8-$C$58)^2,0) -> 92.15676582 | U58: =IF($C$58>K8,J8*2*(K8-$C$58),0) -> 34.16575885
B59: 55 | C59: 15.75 | D59: -96.89344663 | E59: =IF($C$59>K8,I8+J8*(K8-$C$59)^2,I8) -> -108.1810635 | F59: =$D$59-$E$59 -> 11.2876169 | S59: =1 -> 1 | T59: =IF($C$59>K8,(K8-$C$59)^2,0) -> 92.15676582 | U59: =IF($C$59>K8,J8*2*(K8-$C$59),0) -> 34.16575885
B60: 56 | C60: 15.75 | D60: -98.85356878 | E60: =IF($C$60>K8,I8+J8*(K8-$C$60)^2,I8) -> -108.1810635 | F60: =$D$60-$E$60 -> 9.327494746 | S60: =1 -> 1 | T60: =IF($C$60>K8,(K8-$C$60)^2,0) -> 92.15676582 | U60: =IF($C$60>K8,J8*2*(K8-$C$60),0) -> 34.16575885
B61: 57 | C61: 15.75 | D61: -105.3375501 | E61: =IF($C$61>K8,I8+J8*(K8-$C$61)^2,I8) -> -108.1810635 | F61: =$D$61-$E$61 -> 2.843513398 | S61: =1 -> 1 | T61: =IF($C$61>K8,(K8-$C$61)^2,0) -> 92.15676582 | U61: =IF($C$61>K8,J8*2*(K8-$C$61),0) -> 34.16575885
B62: 58 | C62: 15.75 | D62: -113.7009314 | E62: =IF($C$62>K8,I8+J8*(K8-$C$62)^2,I8) -> -108.1810635 | F62: =$D$62-$E$62 -> -5.519867913 | S62: =1 -> 1 | T62: =IF($C$62>K8,(K8-$C$62)^2,0) -> 92.15676582 | U62: =IF($C$62>K8,J8*2*(K8-$C$62),0) -> 34.16575885
B63: 59 | C63: 15.75 | D63: -113.7392165 | E63: =IF($C$63>K8,I8+J8*(K8-$C$63)^2,I8) -> -108.1810635 | F63: =$D$63-$E$63 -> -5.558152998 | S63: =1 -> 1 | T63: =IF($C$63>K8,(K8-$C$63)^2,0) -> 92.15676582 | U63: =IF($C$63>K8,J8*2*(K8-$C$63),0) -> 34.16575885
B64: 60 | C64: 15.75 | D64: -105.0415374 | E64: =IF($C$64>K8,I8+J8*(K8-$C$64)^2,I8) -> -108.1810635 | F64: =$D$64-$E$64 -> 3.139526124 | S64: =1 -> 1 | T64: =IF($C$64>K8,(K8-$C$64)^2,0) -> 92.15676582 | U64: =IF($C$64>K8,J8*2*(K8-$C$64),0) -> 34.16575885
B65: 61 | C65: 15.75 | D65: -106.8932276 | E65: =IF($C$65>K8,I8+J8*(K8-$C$65)^2,I8) -> -108.1810635 | F65: =$D$65-$E$65 -> 1.287835965 | S65: =1 -> 1 | T65: =IF($C$65>K8,(K8-$C$65)^2,0) -> 92.15676582 | U65: =IF($C$65>K8,J8*2*(K8-$C$65),0) -> 34.16575885
B66: 62 | C66: 15.75 | D66: -113.163817 | E66: =IF($C$66>K8,I8+J8*(K8-$C$66)^2,I8) -> -108.1810635 | F66: =$D$66-$E$66 -> -4.982753424 | S66: =1 -> 1 | T66: =IF($C$66>K8,(K8-$C$66)^2,0) -> 92.15676582 | U66: =IF($C$66>K8,J8*2*(K8-$C$66),0) -> 34.16575885
B67: 63 | C67: 15.75 | D67: -107.3268017 | E67: =IF($C$67>K8,I8+J8*(K8-$C$67)^2,I8) -> -108.1810635 | F67: =$D$67-$E$67 -> 0.8542618593 | S67: =1 -> 1 | T67: =IF($C$67>K8,(K8-$C$67)^2,0) -> 92.15676582 | U67: =IF($C$67>K8,J8*2*(K8-$C$67),0) -> 34.16575885
B68: 64 | C68: 15.75 | D68: -106.8970166 | E68: =IF($C$68>K8,I8+J8*(K8-$C$68)^2,I8) -> -108.1810635 | F68: =$D$68-$E$68 -> 1.284046979 | S68: =1 -> 1 | T68: =IF($C$68>K8,(K8-$C$68)^2,0) -> 92.15676582 | U68: =IF($C$68>K8,J8*2*(K8-$C$68),0) -> 34.16575885
B69: 65 | C69: 21 | D69: -349.6330743 | E69: =IF($C$69>K8,I8+J8*(K8-$C$69)^2,I8) -> -336.5987065 | F69: =$D$69-$E$69 -> -13.03436784 | S69: =1 -> 1 | T69: =IF($C$69>K8,(K8-$C$69)^2,0) -> 220.5174971 | U69: =IF($C$69>K8,J8*2*(K8-$C$69),0) -> 52.85048608
B70: 66 | C70: 21 | D70: -319.0653721 | E70: =IF($C$70>K8,I8+J8*(K8-$C$70)^2,I8) -> -336.5987065 | F70: =$D$70-$E$70 -> 17.5333344 | S70: =1 -> 1 | T70: =IF($C$70>K8,(K8-$C$70)^2,0) -> 220.5174971 | U70: =IF($C$70>K8,J8*2*(K8-$C$70),0) -> 52.85048608
B71: 67 | C71: 21 | D71: -359.195346 | E71: =IF($C$71>K8,I8+J8*(K8-$C$71)^2,I8) -> -336.5987065 | F71: =$D$71-$E$71 -> -22.5966395 | S71: =1 -> 1 | T71: =IF($C$71>K8,(K8-$C$71)^2,0) -> 220.5174971 | U71: =IF($C$71>K8,J8*2*(K8-$C$71),0) -> 52.85048608
B72: 68 | C72: 21 | D72: -337.5109956 | E72: =IF($C$72>K8,I8+J8*(K8-$C$72)^2,I8) -> -336.5987065 | F72: =$D$72-$E$72 -> -0.9122891523 | S72: =1 -> 1 | T72: =IF($C$72>K8,(K8-$C$72)^2,0) -> 220.5174971 | U72: =IF($C$72>K8,J8*2*(K8-$C$72),0) -> 52.85048608
B73: 69 | C73: 21 | D73: -342.1397546 | E73: =IF($C$73>K8,I8+J8*(K8-$C$73)^2,I8) -> -336.5987065 | F73: =$D$73-$E$73 -> -5.54104815 | S73: =1 -> 1 | T73: =IF($C$73>K8,(K8-$C$73)^2,0) -> 220.5174971 | U73: =IF($C$73>K8,J8*2*(K8-$C$73),0) -> 52.85048608
B74: 70 | C74: 21 | D74: -326.8461227 | E74: =IF($C$74>K8,I8+J8*(K8-$C$74)^2,I8) -> -336.5987065 | F74: =$D$74-$E$74 -> 9.752583771 | S74: =1 -> 1 | T74: =IF($C$74>K8,(K8-$C$74)^2,0) -> 220.5174971 | U74: =IF($C$74>K8,J8*2*(K8-$C$74),0) -> 52.85048608
B75: 71 | C75: 21 | D75: -341.6321623 | E75: =IF($C$75>K8,I8+J8*(K8-$C$75)^2,I8) -> -336.5987065 | F75: =$D$75-$E$75 -> -5.033455882 | S75: =1 -> 1 | T75: =IF($C$75>K8,(K8-$C$75)^2,0) -> 220.5174971 | U75: =IF($C$75>K8,J8*2*(K8-$C$75),0) -> 52.85048608
B76: 72 | C76: 21 | D76: -321.4646055 | E76: =IF($C$76>K8,I8+J8*(K8-$C$76)^2,I8) -> -336.5987065 | F76: =$D$76-$E$76 -> 15.13410097 | S76: =1 -> 1 | T76: =IF($C$76>K8,(K8-$C$76)^2,0) -> 220.5174971 | U76: =IF($C$76>K8,J8*2*(K8-$C$76),0) -> 52.85048608
B77: 73 | C77: 21 | D77: -334.6764809 | E77: =IF($C$77>K8,I8+J8*(K8-$C$77)^2,I8) -> -336.5987065 | F77: =$D$77-$E$77 -> 1.922225555 | S77: =1 -> 1 | T77: =IF($C$77>K8,(K8-$C$77)^2,0) -> 220.5174971 | U77: =IF($C$77>K8,J8*2*(K8-$C$77),0) -> 52.85048608
B78: 74 | C78: 21 | D78: -345.1133323 | E78: =IF($C$78>K8,I8+J8*(K8-$C$78)^2,I8) -> -336.5987065 | F78: =$D$78-$E$78 -> -8.514625877 | S78: =1 -> 1 | T78: =IF($C$78>K8,(K8-$C$78)^2,0) -> 220.5174971 | U78: =IF($C$78>K8,J8*2*(K8-$C$78),0) -> 52.85048608
B79: 75 | C79: 21 | D79: -367.4987295 | E79: =IF($C$79>K8,I8+J8*(K8-$C$79)^2,I8) -> -336.5987065 | F79: =$D$79-$E$79 -> -30.90002304 | S79: =1 -> 1 | T79: =IF($C$79>K8,(K8-$C$79)^2,0) -> 220.5174971 | U79: =IF($C$79>K8,J8*2*(K8-$C$79),0) -> 52.85048608
B80: 76 | C80: 21 | D80: -347.534879 | E80: =IF($C$80>K8,I8+J8*(K8-$C$80)^2,I8) -> -336.5987065 | F80: =$D$80-$E$80 -> -10.93617256 | S80: =1 -> 1 | T80: =IF($C$80>K8,(K8-$C$80)^2,0) -> 220.5174971 | U80: =IF($C$80>K8,J8*2*(K8-$C$80),0) -> 52.85048608
B81: 77 | C81: 21 | D81: -331.7207274 | E81: =IF($C$81>K8,I8+J8*(K8-$C$81)^2,I8) -> -336.5987065 | F81: =$D$81-$E$81 -> 4.877979012 | S81: =1 -> 1 | T81: =IF($C$81>K8,(K8-$C$81)^2,0) -> 220.5174971 | U81: =IF($C$81>K8,J8*2*(K8-$C$81),0) -> 52.85048608
B82: 78 | C82: 21 | D82: -327.8066758 | E82: =IF($C$82>K8,I8+J8*(K8-$C$82)^2,I8) -> -336.5987065 | F82: =$D$82-$E$82 -> 8.79203066 | S82: =1 -> 1 | T82: =IF($C$82>K8,(K8-$C$82)^2,0) -> 220.5174971 | U82: =IF($C$82>K8,J8*2*(K8-$C$82),0) -> 52.85048608
B83: 79 | C83: 21 | D83: -321.8389411 | E83: =IF($C$83>K8,I8+J8*(K8-$C$83)^2,I8) -> -336.5987065 | F83: =$D$83-$E$83 -> 14.75976539 | S83: =1 -> 1 | T83: =IF($C$83>K8,(K8-$C$83)^2,0) -> 220.5174971 | U83: =IF($C$83>K8,J8*2*(K8-$C$83),0) -> 52.85048608
B84: 80 | C84: 21 | D84: -316.7617969 | E84: =IF($C$84>K8,I8+J8*(K8-$C$84)^2,I8) -> -336.5987065 | F84: =$D$84-$E$84 -> 19.83690954 | S84: =1 -> 1 | T84: =IF($C$84>K8,(K8-$C$84)^2,0) -> 220.5174971 | U84: =IF($C$84>K8,J8*2*(K8-$C$84),0) -> 52.85048608

Sheet True Parameters Estimator (BLL)
B1: Fitting the Broken-Line (descending Linear) Model to Ingredient Tolerance Data
B2: Data | H2: Sample Statistics | S2: Plotting Parameters | X2: Error Analysis
A3: Point | B3: Input | C3: Output | D3: Residuals | E3: Expected | F3: Qm | H3: Min Input | I3: =MIN(B4:B103) -> 0 | J3: Min Output | K3: =MIN(C4:C103) -> 2.089 | N3: Instructions | S3: Min Input | T3: Max Input | U3: # of Points | X3: Maximum(X0) | Y3: Rate Constant (X1) | Z3: Requirement(X2) | AA3: Q0 | AE3: Number of Observations, T | AF3: Number of Regressors, K | AG3: sigma
A4: 1 | B4: 0 | C4: 2.278 | D4: =IF(B4="","",IF(B4>$J$8,C4-($H$8+$I$8*(-$J$8+B4)),C4-$H$8)) -> -0.002332447045 | E4: =IF(B4="","",IF(B4<$J$8,($H$8+$I$8*(-$J$8+B4)),$H$8)) -> 2.80900862 | F4: =IF(B4="","",D4^2/E4) -> 1.936736391e-06 | H4: Max Input | I4: =MAX(B4:B103) -> 28 | J4: Max Output | K4: =MAX(C4:C103) -> 2.292 | N4: 1. Input data in cells B4:C103 | S4: =FLOOR(I3,1) -> 0 | T4: =CEILING(I4,1) -> 28 | U4: 101 | X4: =IF(ISBLANK(B4),"",1) -> 1 | Y4: =IF(B4="","",($J$8-B4)*IF(B4>$J$8,1,0)) -> 0 | Z4: =IF(B4="","",$I$8*IF(B4>$J$8,1,0)) -> 0 | AA4: =SUMPRODUCT(X$4:X$103,X$4:X$103) -> 5 | AB4: =SUMPRODUCT(X$4:X$103,Y$4:Y$103) -> -7.881294591 | AC4: =SUMPRODUCT(X$4:X$103,Z$4:Z$103) -> -0.0514292624
A5: =A4+1 -> 2 | B5: 7 | C5: 2.292 | D5: =IF(B5="","",IF(B5>$J$8,C5-($H$8+$I$8*(-$J$8+B5)),C5-$H$8)) -> 0.01166755296 | E5: =IF(B5="","",IF(B5<$J$8,($H$8+$I$8*(-$J$8+B5)),$H$8)) -> 2.629006201 | F5: =IF(B5="","",D5^2/E5) -> 5.178070402e-05 | N5: 2. View the data and estimate values for the Maximum and MSL in cells H8 and J8 | S5: Prediction | X5: 1 | Y5: =IF(B5="","",($J$8-B5)*IF(B5>$J$8,1,0)) -> 0 | Z5: =IF(B5="","",$I$8*IF(B5>$J$8,1,0)) -> 0 | AA5: =SUMPRODUCT(Y$4:Y$103,X$4:X$103) -> -7.881294591 | AB5: =SUMPRODUCT(Y$4:Y$103,Y$4:Y$103) -> 55.55740221 | AC5: =SUMPRODUCT(Y$4:Y$103,Z$4:Z$103) -> 0.2026645838 | AE5: =COUNT(B4:B53) -> 5 | AF5: 3 | AG5: =SQRT(K8/(AE5-AF5)) -> 0.01069267675
A6: 3 | B6: 14 | C6: 2.271 | D6: -0.009332447045 | E6: 2.449003783 | F6: 3.556326391e-05 | H6: Regression | S6: Point | T6: Input | U6: Output | X6: 1 | Y6: 0 | Z6: 0 | AA6: =SUMPRODUCT(Z$4:Z$103,X$4:X$103) -> -0.0514292624 | AB6: =SUMPRODUCT(Z$4:Z$103,Y$4:Y$103) -> 0.2026645838 | AC6: =SUMPRODUCT(Z$4:Z$103,Z$4:Z$103) -> 0.001322484515
A7: 4 | B7: 21 | C7: 2.269 | D7: -1.364353816e-06 | E7: 2.280332447 | F7: 8.163113839e-13 | H7: Max or Min | I7: Rate Constant | J7: MSL | K7: SSE | S7: 1 | T7: =$S$4+(S7-1)*($T$4-$S$4)/($U$4-1) -> 0 | U7: =IF(T7>$J$8,($H$8+$I$8*(-$J$8+T7)),$H$8) -> 2.280332447 | V7: =--TRIM(SUBSTITUTE(B4,CHAR(160),"")) -> 0 | W7: 2.278 | X7: 1 | Y7: -0.4406472954 | Z7: -0.0257146312 | AA7: inv(Q0)
A8: 5 | B8: 28 | C8: 2.089 | D8: 1.054038785e-06 | E8: 2.280332447 | F8: 4.872086796e-13 | G8: 0 | H8: 2.280332447 | I8: -0.0257146312 | J8: 20.5593527 | K8: =SUMPRODUCT(D4:D53,D4:D53) -> 0.000228666672 | N8: 3. Guess the Rate Constant values in cell I8 until the predicted line is close to the observed points | S8: 2 | T8: 0.28 | U8: =IF(T8>$J$8,($H$8+$I$8*(-$J$8+T8)),$H$8) -> 2.280332447 | V8: 7 | W8: 2.292 | X8: 1 | Y8: -7.440647295 | Z8: -0.0257146312 | AA8: =MINVERSE(AA4:AC6) -> 0.3333333333 | AB8: 2.817362076e-17 | AC8: 12.9627888
A9: 6 | S9: 3 | T9: 0.56 | U9: 2.280332447 | V9: 14 | W9: 2.271 | AA9: 0 | AB9: 0.04081632653 | AC9: -6.254911669
A10: 7 | H10: =IF(ISNUMBER(H13),H$8-NORMSINV(0.975)*H$13,"N/A") -> 2.268232767 | I10: =IF(ISNUMBER(I13),I$8-NORMSINV(0.975)*I$13,"N/A") -> -0.02994863737 | J10: =IF(ISNUMBER(J13),J$8-NORMSINV(0.975)*J$13,"N/A") -> 19.57218111 | K10: Lower 95% Confidence Levels | S10: 4 | T10: 0.84 | U10: 2.280332447 | V10: 21 | W10: 2.269 | AA10: 12.9627888 | AB10: -6.254911669 | AC10: 2218.790241
A11: 8 | H11: =IF(ISNUMBER(H14),H$8+NORMSINV(0.975)*H$13,"N/A") -> 2.292432128 | I11: =IF(ISNUMBER(I14),I$8+NORMSINV(0.975)*I$13,"N/A") -> -0.02148062503 | J11: =IF(ISNUMBER(J14),J$8+NORMSINV(0.975)*J$13,"N/A") -> 21.5465243 | K11: Upper 95% Confidence Levels | N11: 4. Press the button below to run solver with current settings | S11: 5 | T11: 1.12 | U11: 2.280332447 | V11: 28 | W11: 2.089
A12: 9 | S12: 6 | T12: 1.4 | U12: 2.280332447
A13: 10 | H13: =IF(ISNUMBER(AA8),SQRT(AA8)*$AG$5,"N/A") -> 0.006173419798 | I13: =IF(ISNUMBER(AB9),SQRT(AB9)*$AG$5,"N/A") -> 0.002160246925 | J13: =IF(ISNUMBER(AC10),SQRT(AC10)*$AG$5,"N/A") -> 0.5036682342 | K13: Standard Errors | S13: 7 | T13: 1.68 | U13: 2.280332447
A14: 11 | H14: =IF(ISNUMBER(H13),H8/H13,"N/A") -> 369.3791321 | I14: =IF(ISNUMBER(I13),I8/I13,"N/A") -> -11.90356107 | J14: =IF(ISNUMBER(J13),J8/J13,"N/A") -> 40.81923637 | K14: t-Statistics | N14: 5. Solver will attempt to minimize SSE (red cell) by changing cells H8:J8 | S14: 8 | T14: 1.96 | U14: 2.280332447
A15: 12 | H15: =IF(ISNUMBER(H14),2*TDIST(ABS(H14),$AE$5-$AF$5,1),"N/A") -> 7.329097723e-06 | I15: =IF(ISNUMBER(I14),2*TDIST(ABS(I14),$AE$5-$AF$5,1),"N/A") -> 0.006983580908 | J15: =IF(ISNUMBER(J14),2*TDIST(ABS(J14),$AE$5-$AF$5,1),"N/A") -> 0.000599624668 | K15: p-values | S15: 9 | T15: 2.24 | U15: 2.280332447 | X15: =IF(ISBLANK(B15),"",1) -> 
A16: 13 | H16: =1-K8/(SUMPRODUCT(C4:C103,C4:C103)-COUNT(C4:C103)*AVERAGE(C4:C103)^2) -> 0.9920465979 | K16: Goodness of Fit (R2) | S16: 10 | T16: 2.52 | U16: 2.280332447 | X16: =IF(ISBLANK(B16),"",1) -> 
A17: 14 | S17: 11 | T17: 2.8 | U17: 2.280332447 | X17: =IF(ISBLANK(B17),"",1) -> 
A18: 15 | H18: Functional Form | S18: 12 | T18: 3.08 | U18: 2.280332447 | X18: =IF(ISBLANK(B18),"",1) -> 
A19: 16 | H19: y ={ | I19: Maximum, | L19: if x< MSL | S19: 13 | T19: 3.36 | U19: 2.280332447
A20: 17 | I20: Maximum + Rate Constant × (- MSL + x) | L20: if x ≥ MSL | S20: 14 | T20: 3.64 | U20: 2.280332447
A21: 18 | S21: 15 | T21: 3.92 | U21: 2.280332447
A22: 19 | S22: 16 | T22: 4.2 | U22: 2.280332447
A23: 20 | S23: 17 | T23: 4.48 | U23: 2.280332447
A24: 21 | S24: 18 | T24: 4.76 | U24: 2.280332447
A25: 22 | S25: 19 | T25: 5.04 | U25: 2.280332447
A26: 23 | S26: 20 | T26: 5.32 | U26: 2.280332447
A27: 24 | S27: 21 | T27: 5.6 | U27: 2.280332447
A28: 25 | S28: 22 | T28: 5.88 | U28: 2.280332447
A29: 26 | S29: 23 | T29: 6.16 | U29: 2.280332447
A30: 27 | S30: 24 | T30: 6.44 | U30: 2.280332447
A31: 28 | S31: 25 | T31: 6.72 | U31: 2.280332447
A32: 29 | S32: 26 | T32: 7 | U32: 2.280332447
A33: 30 | S33: 27 | T33: 7.28 | U33: 2.280332447
A34: 31 | S34: 28 | T34: 7.56 | U34: 2.280332447
A35: 32 | S35: 29 | T35: 7.84 | U35: 2.280332447
A36: 33 | S36: 30 | T36: 8.12 | U36: 2.280332447
A37: 34 | S37: 31 | T37: 8.4 | U37: 2.280332447
A38: 35 | S38: 32 | T38: 8.68 | U38: 2.280332447
A39: 36 | S39: 33 | T39: 8.96 | U39: 2.280332447 | V39: =--TRIM(SUBSTITUTE(B36,CHAR(160),"")) -> 
A40: 37 | S40: 34 | T40: 9.24 | U40: 2.280332447
A41: 38 | S41: 35 | T41: 9.52 | U41: 2.280332447
A42: 39 | S42: 36 | T42: 9.8 | U42: 2.280332447
A43: 40 | S43: 37 | T43: 10.08 | U43: 2.280332447
A44: 41 | S44: 38 | T44: 10.36 | U44: 2.280332447
A45: 42 | S45: 39 | T45: 10.64 | U45: 2.280332447
A46: 43 | S46: 40 | T46: 10.92 | U46: 2.280332447
A47: 44 | S47: 41 | T47: 11.2 | U47: 2.280332447
A48: 45 | S48: 42 | T48: 11.48 | U48: 2.280332447
A49: 46 | S49: 43 | T49: 11.76 | U49: 2.280332447
A50: 47 | S50: 44 | T50: 12.04 | U50: 2.280332447
A51: 48 | S51: 45 | T51: 12.32 | U51: 2.280332447
A52: 49 | S52: 46 | T52: 12.6 | U52: 2.280332447
A53: 50 | S53: 47 | T53: 12.88 | U53: 2.280332447
A54: 51 | S54: 48 | T54: 13.16 | U54: 2.280332447
A55: 52 | S55: 49 | T55: 13.44 | U55: 2.280332447
A56: 53 | S56: 50 | T56: 13.72 | U56: 2.280332447
A57: 54 | S57: 51 | T57: 14 | U57: 2.280332447
A58: 55 | S58: 52 | T58: 14.28 | U58: 2.280332447
A59: 56 | S59: 53 | T59: 14.56 | U59: 2.280332447
A60: 57 | S60: 54 | T60: 14.84 | U60: 2.280332447
A61: 58 | S61: 55 | T61: 15.12 | U61: 2.280332447
A62: 59 | S62: 56 | T62: 15.4 | U62: 2.280332447
A63: 60 | S63: 57 | T63: 15.68 | U63: 2.280332447
A64: 61 | S64: 58 | T64: 15.96 | U64: 2.280332447
A65: 62 | S65: 59 | T65: 16.24 | U65: 2.280332447
A66: 63 | S66: 60 | T66: 16.52 | U66: 2.280332447
A67: 64 | S67: 61 | T67: 16.8 | U67: 2.280332447
A68: 65 | S68: 62 | T68: 17.08 | U68: 2.280332447 | X68: =IF(ISBLANK(B68),"",1) -> 
A69: =A68+1 -> 66 | D69: =IF(B69="","",IF(B69>$J$8,C69-($H$8+$I$8*(-$J$8+B69)),C69-$H$8)) ->  | E69: =IF(B69="","",IF(B69<$J$8,($H$8+$I$8*(-$J$8+B69)),$H$8)) ->  | F69: =IF(B69="","",D69^2/E69) ->  | S69: 63 | T69: 17.36 | U69: 2.280332447 | Y69: =IF(B69="","",($J$8-B69)*IF(B69>$J$8,1,0)) ->  | Z69: =IF(B69="","",$I$8*IF(B69>$J$8,1,0)) -> 
A70: 67 | S70: 64 | T70: 17.64 | U70: 2.280332447
A71: 68 | S71: 65 | T71: =$S$4+(S71-1)*($T$4-$S$4)/($U$4-1) -> 17.92 | U71: 2.280332447 | V71: =--TRIM(SUBSTITUTE(B68,CHAR(160),"")) -> 
A72: 69 | S72: 66 | T72: 18.2 | U72: =IF(T72>$J$8,($H$8+$I$8*(-$J$8+T72)),$H$8) -> 2.280332447
A73: 70 | S73: 67 | T73: 18.48 | U73: 2.280332447
A74: 71 | S74: 68 | T74: 18.76 | U74: 2.280332447
A75: 72 | S75: 69 | T75: 19.04 | U75: 2.280332447
A76: 73 | S76: 70 | T76: 19.32 | U76: 2.280332447
A77: 74 | S77: 71 | T77: 19.6 | U77: 2.280332447
A78: 75 | S78: 72 | T78: 19.88 | U78: 2.280332447
A79: 76 | S79: 73 | T79: 20.16 | U79: 2.280332447
A80: 77 | S80: 74 | T80: 20.44 | U80: 2.280332447
A81: 78 | S81: 75 | T81: 20.72 | U81: 2.276201461
A82: 79 | S82: 76 | T82: 21 | U82: 2.269001364
A83: 80 | S83: 77 | T83: 21.28 | U83: 2.261801268
A84: 81 | S84: 78 | T84: 21.56 | U84: 2.254601171
A85: 82 | S85: 79 | T85: 21.84 | U85: 2.247401074
A86: 83 | S86: 80 | T86: 22.12 | U86: 2.240200977
A87: 84 | S87: 81 | T87: 22.4 | U87: 2.233000881 | V87: =--TRIM(SUBSTITUTE(B84,CHAR(160),"")) -> 
A88: 85 | S88: 82 | T88: 22.68 | U88: 2.225800784
A89: 86 | S89: 83 | T89: 22.96 | U89: 2.218600687
A90: 87 | S90: 84 | T90: 23.24 | U90: 2.21140059
A91: 88 | S91: 85 | T91: 23.52 | U91: 2.204200494
A92: 89 | S92: 86 | T92: 23.8 | U92: 2.197000397
A93: 90 | S93: 87 | T93: 24.08 | U93: 2.1898003
A94: 91 | S94: 88 | T94: 24.36 | U94: 2.182600204
A95: 92 | S95: 89 | T95: 24.64 | U95: 2.175400107
A96: 93 | S96: 90 | T96: 24.92 | U96: 2.16820001
A97: 94 | S97: 91 | T97: 25.2 | U97: 2.160999913
A98: 95 | S98: 92 | T98: 25.48 | U98: 2.153799817
A99: 96 | S99: 93 | T99: 25.76 | U99: 2.14659972
A100: 97 | S100: 94 | T100: 26.04 | U100: 2.139399623
A101: 98 | S101: 95 | T101: 26.32 | U101: 2.132199526 | X101: =IF(ISBLANK(B101),"",1) -> 
A102: 99 | S102: 96 | T102: 26.6 | U102: 2.12499943 | X102: =IF(ISBLANK(B102),"",1) -> 
A103: =A102+1 -> 100 | S103: 97 | T103: =$S$4+(S103-1)*($T$4-$S$4)/($U$4-1) -> 26.88 | U103: 2.117799333 | V103: =--TRIM(SUBSTITUTE(B100,CHAR(160),"")) ->  | X103: =IF(ISBLANK(B103),"",1) -> 
D104: =SUM(D4:D103) -> 2.348550943e-06 | E104: 12.4476835 | F104: =SUM(F4:F103) -> 8.928070562e-05 | S104: 98 | T104: =$S$4+(S104-1)*($T$4-$S$4)/($U$4-1) -> 27.16 | U104: 2.110599236
S105: 99 | T105: =$S$4+(S105-1)*($T$4-$S$4)/($U$4-1) -> 27.44 | U105: 2.103399139
S106: 100 | T106: =$S$4+(S106-1)*($T$4-$S$4)/($U$4-1) -> 27.72 | U106: 2.096199043
S107: 101 | T107: =$S$4+(S107-1)*($T$4-$S$4)/($U$4-1) -> 28 | U107: 2.088998946

Sheet True Parameters Estimator (BLQ)
B1: Fitting the Broken-Line (descending Quadratic) Model to Ingredient Tolerance Data
B2: Data | H2: Sample Statistics | S2: Plotting Parameters | X2: Error Analysis
A3: Point | B3: Input | C3: Output | D3: Residuals | E3: Expected | F3: Qm | H3: Min Input | I3: =MIN(B4:B103) -> 0 | J3: Min Output | K3: =MIN(C4:C103) -> 2.089 | N3: Instructions | S3: Min Input | T3: Max Input | U3: # of Points | X3: Maximum(X0) | Y3: Rate Constant (X1) | Z3: Requirement(X2) | AA3: Q0 | AE3: Number of Observations, T | AF3: Number of Regressors, K | AG3: sigma
A4: 1 | B4: 0 | C4: 2.278 | D4: =IF(B4="","",IF(B4>$J$8,C4-($H$8+$I$8*($J$8-B4)^2),C4-$H$8)) -> -0.001875177649 | E4: =IF(B4="","",IF(B4>$J$8,($H$8+$I$8*($J$8-B4)^2),$H$8)) -> 2.279875178 | F4: =IF(B4="","",D4^2/E4) -> 1.542317426e-06 | H4: Max Input | I4: =MAX(B4:B103) -> 28 | J4: Max Output | K4: =MAX(C4:C103) -> 2.292 | N4: 1. Input data in cells B4:C103 | S4: =FLOOR(I3,1) -> 0 | T4: =CEILING(I4,1) -> 28 | U4: 101 | X4: =IF(ISBLANK(B4),"",1) -> 1 | Y4: =IF(B4="","",($J$8-B4)^2*IF(B4>$J$8,1,0)) -> 0 | Z4: =IF(B4="","",2*$I$8*($J$8-B4)*IF(B4>$J$8,1,0)) -> 0 | AA4: =SUMPRODUCT(X$4:X$103,X$4:X$103) -> 5 | AB4: =SUMPRODUCT(X$4:X$103,Y$4:Y$103) -> 84.99963282 | AC4: =SUMPRODUCT(X$4:X$103,Z$4:Z$103) -> 0.05186352073
A5: =A4+1 -> 2 | B5: 7 | C5: 2.292 | D5: =IF(B5="","",IF(B5>$J$8,C5-($H$8+$I$8*($J$8-B5)^2),C5-$H$8)) -> 0.01212482235 | E5: =IF(B5="","",IF(B5>$J$8,($H$8+$I$8*($J$8-B5)^2),$H$8)) -> 2.279875178 | F5: =IF(B5="","",D5^2/E5) -> 6.448217801e-05 | N5: 2. View the data and estimate values for the Maximum and MSL in cells H8 and J8 | S5: Prediction | X5: 1 | Y5: =IF(B5="","",($J$8-B5)^2*IF(B5>$J$8,1,0)) -> 0 | Z5: =IF(B5="","",2*$I$8*($J$8-B5)*IF(B5>$J$8,1,0)) -> 0 | AA5: =SUMPRODUCT(Y$4:Y$103,X$4:X$103) -> 84.99963282 | AB5: =SUMPRODUCT(Y$4:Y$103,Y$4:Y$103) -> 6576.950798 | AC5: =SUMPRODUCT(Y$4:Y$103,Z$4:Z$103) -> 3.474846367 | AE5: =COUNT(B4:B53) -> 5 | AF5: 3 | AG5: =SQRT(K8/(AE5-AF5)) -> 0.01075620669
A6: 3 | B6: 14 | C6: 2.271 | D6: -0.008875177649 | E6: 2.279875178 | F6: 3.454960126e-05 | H6: Regression | S6: Point | T6: Input | U6: Output | X6: 1 | Y6: 0 | Z6: 0 | AA6: =SUMPRODUCT(Z$4:Z$103,X$4:X$103) -> 0.05186352073 | AB6: =SUMPRODUCT(Z$4:Z$103,Y$4:Y$103) -> 3.474846367 | AC6: =SUMPRODUCT(Z$4:Z$103,Z$4:Z$103) -> 0.00188954964
A7: 4 | B7: 21 | C7: 2.269 | D7: -0.001445575375 | E7: 2.270445575 | F7: 9.203868121e-07 | H7: Max or Min | I7: Rate Constant | J7: MSL | K7: SSE | S7: 1 | T7: =$S$4+(S7-1)*($T$4-$S$4)/($U$4-1) -> 0 | U7: =IF(T7>$J$8,($H$8+$I$8*($J$8-T7)^2),$H$8) -> 2.279875178 | V7: =--TRIM(SUBSTITUTE(B4,CHAR(160),"")) -> 0 | W7: 2.278 | X7: 1 | Y7: 3.99993324 | Z7: 0.009429680965 | AA7: inv(Q0)
A8: 5 | B8: 28 | C8: 2.089 | D8: 7.674718558e-05 | E8: 2.088923253 | F8: 2.819696935e-09 | G8: 0 | H8: 2.279875178 | I8: -0.002357439914 | J8: 19.00001669 | K8: =SUMPRODUCT(D4:D53,D4:D53) -> 0.0002313919649 | N8: 3. Guess the Rate Constant values in cell I8 until the predicted line is close to the observed points | S8: 2 | T8: 0.28 | U8: =IF(T8>$J$8,($H$8+$I$8*($J$8-T8)^2),$H$8) -> 2.279875178 | V8: 7 | W8: 2.292 | X8: 1 | Y8: 80.99969958 | Z8: 0.04243383977 | AA8: =MINVERSE(AA4:AC6) -> 0.3333333333 | AB8: 0.0185187074 | AC8: -43.2047413
A9: 6 | S9: 3 | T9: 0.56 | U9: 2.279875178 | V9: 14 | W9: 2.271 | AA9: 0.0185187074 | AB9: 0.00638290711 | AC9: -12.24633979
A10: 7 | H10: =IF(ISNUMBER(H13),H$8-NORMSINV(0.975)*H$13,"N/A") -> 2.267703608 | I10: =IF(ISNUMBER(I13),I$8-NORMSINV(0.975)*I$13,"N/A") -> -0.004041728449 | J10: =IF(ISNUMBER(J13),J$8-NORMSINV(0.975)*J$13,"N/A") -> 15.71803139 | K10: Lower 95% Confidence Levels | S10: 4 | T10: 0.84 | U10: 2.279875178 | V10: 21 | W10: 2.269 | AA10: -43.2047413 | AB10: -12.24633979 | AC10: 24235.88053
A11: 8 | H11: =IF(ISNUMBER(H14),H$8+NORMSINV(0.975)*H$13,"N/A") -> 2.292046748 | I11: =IF(ISNUMBER(I14),I$8+NORMSINV(0.975)*I$13,"N/A") -> -0.00067315138 | J11: =IF(ISNUMBER(J14),J$8+NORMSINV(0.975)*J$13,"N/A") -> 22.28200199 | K11: Upper 95% Confidence Levels | N11: 4. Press the button below to run solver with current settings | S11: 5 | T11: 1.12 | U11: 2.279875178 | V11: 28 | W11: 2.089
A12: 9 | S12: 6 | T12: 1.4 | U12: 2.279875178
A13: 10 | H13: =IF(ISNUMBER(AA8),SQRT(AA8)*$AG$5,"N/A") -> 0.00621009883 | I13: =IF(ISNUMBER(AB9),SQRT(AB9)*$AG$5,"N/A") -> 0.0008593466756 | J13: =IF(ISNUMBER(AC10),SQRT(AC10)*$AG$5,"N/A") -> 1.674513066 | K13: Standard Errors | S13: 7 | T13: 1.68 | U13: 2.279875178
A14: 11 | H14: =IF(ISNUMBER(H13),H8/H13,"N/A") -> 367.1238156 | I14: =IF(ISNUMBER(I13),I8/I13,"N/A") -> -2.743293227 | J14: =IF(ISNUMBER(J13),J8/J13,"N/A") -> 11.34659208 | K14: t-Statistics | S14: 8 | T14: 1.96 | U14: 2.279875178
A15: 12 | H15: =IF(ISNUMBER(H14),2*TDIST(ABS(H14),$AE$5-$AF$5,1),"N/A") -> 7.419421595e-06 | I15: =IF(ISNUMBER(I14),2*TDIST(ABS(I14),$AE$5-$AF$5,1),"N/A") -> 0.1111576377 | J15: =IF(ISNUMBER(J14),2*TDIST(ABS(J14),$AE$5-$AF$5,1),"N/A") -> 0.00767794256 | K15: p-values | N15: 5. Solver will attempt to minimize SSE (red cell) by changing cells H8:J8 | S15: 9 | T15: 2.24 | U15: 2.279875178
A16: 13 | H16: =1-K8/(SUMPRODUCT(C4:C103,C4:C103)-COUNT(C4:C103)*AVERAGE(C4:C103)^2) -> 0.9919518078 | K16: Goodness of Fit (R2) | S16: 10 | T16: 2.52 | U16: 2.279875178
A17: 14 | S17: 11 | T17: 2.8 | U17: 2.279875178
A18: 15 | H18: Functional Form | S18: 12 | T18: 3.08 | U18: 2.279875178
A19: 16 | H19: y ={ | I19: Maximum, | L19: if x < MSL | S19: 13 | T19: 3.36 | U19: 2.279875178
A20: 17 | I20: Maximum + Rate Constant×(MSL - x)2 | L20: if x ≥ MSL | S20: 14 | T20: 3.64 | U20: 2.279875178
A21: 18 | S21: 15 | T21: 3.92 | U21: 2.279875178
A22: 19 | S22: 16 | T22: 4.2 | U22: 2.279875178
A23: 20 | S23: 17 | T23: 4.48 | U23: 2.279875178
A24: 21 | S24: 18 | T24: 4.76 | U24: 2.279875178
A25: 22 | K25: ='True Parameters Estimator (BLQ)'!F10 ->  | S25: 19 | T25: 5.04 | U25: 2.279875178
A26: 23 | S26: 20 | T26: 5.32 | U26: 2.279875178
A27: 24 | S27: 21 | T27: 5.6 | U27: 2.279875178
A28: 25 | S28: 22 | T28: 5.88 | U28: 2.279875178
A29: 26 | S29: 23 | T29: 6.16 | U29: 2.279875178
A30: 27 | S30: 24 | T30: 6.44 | U30: 2.279875178
A31: 28 | S31: 25 | T31: 6.72 | U31: 2.279875178
A32: 29 | S32: 26 | T32: 7 | U32: 2.279875178
A33: 30 | S33: 27 | T33: 7.28 | U33: 2.279875178
A34: 31 | S34: 28 | T34: 7.56 | U34: 2.279875178
A35: 32 | S35: 29 | T35: 7.84 | U35: 2.279875178
A36: 33 | S36: 30 | T36: 8.12 | U36: 2.279875178
A37: 34 | S37: 31 | T37: 8.4 | U37: 2.279875178
A38: 35 | S38: 32 | T38: 8.68 | U38: 2.279875178
A39: 36 | S39: 33 | T39: 8.96 | U39: 2.279875178 | V39: =--TRIM(SUBSTITUTE(B36,CHAR(160),"")) -> 
A40: 37 | S40: 34 | T40: 9.24 | U40: 2.279875178
A41: 38 | S41: 35 | T41: 9.52 | U41: 2.279875178
A42: 39 | S42: 36 | T42: 9.8 | U42: 2.279875178
A43: 40 | S43: 37 | T43: 10.08 | U43: 2.279875178
A44: 41 | S44: 38 | T44: 10.36 | U44: 2.279875178
A45: 42 | S45: 39 | T45: 10.64 | U45: 2.279875178
A46: 43 | S46: 40 | T46: 10.92 | U46: 2.279875178
A47: 44 | S47: 41 | T47: 11.2 | U47: 2.279875178
A48: 45 | S48: 42 | T48: 11.48 | U48: 2.279875178
A49: 46 | S49: 43 | T49: 11.76 | U49: 2.279875178
A50: 47 | S50: 44 | T50: 12.04 | U50: 2.279875178
A51: 48 | S51: 45 | T51: 12.32 | U51: 2.279875178
A52: 49 | S52: 46 | T52: 12.6 | U52: 2.279875178
A53: 50 | S53: 47 | T53: 12.88 | U53: 2.279875178
A54: 51 | S54: 48 | T54: 13.16 | U54: 2.279875178
A55: 52 | S55: 49 | T55: 13.44 | U55: 2.279875178
A56: 53 | S56: 50 | T56: 13.72 | U56: 2.279875178
A57: 54 | S57: 51 | T57: 14 | U57: 2.279875178
A58: 55 | S58: 52 | T58: 14.28 | U58: 2.279875178
A59: 56 | S59: 53 | T59: 14.56 | U59: 2.279875178
A60: 57 | S60: 54 | T60: 14.84 | U60: 2.279875178
A61: 58 | S61: 55 | T61: 15.12 | U61: 2.279875178
A62: 59 | S62: 56 | T62: 15.4 | U62: 2.279875178
A63: 60 | S63: 57 | T63: 15.68 | U63: 2.279875178
A64: 61 | S64: 58 | T64: 15.96 | U64: 2.279875178
A65: 62 | S65: 59 | T65: 16.24 | U65: 2.279875178
A66: 63 | S66: 60 | T66: 16.52 | U66: 2.279875178
A67: 64 | S67: 61 | T67: 16.8 | U67: 2.279875178
A68: 65 | S68: 62 | T68: 17.08 | U68: 2.279875178 | X68: =IF(ISBLANK(B68),"",1) -> 
A69: =A68+1 -> 66 | D69: =IF(B69="","",IF(B69>$J$8,C69-($H$8+$I$8*($J$8-B69)^2),C69-$H$8)) ->  | E69: =IF(B69="","",IF(B69>$J$8,($H$8+$I$8*($J$8-B69)^2),$H$8)) ->  | F69: =IF(B69="","",D69^2/E69) ->  | S69: 63 | T69: 17.36 | U69: 2.279875178 | Y69: =IF(B69="","",($J$8-B69)^2*IF(B69>$J$8,1,0)) ->  | Z69: =IF(B69="","",2*$I$8*($J$8-B69)*IF(B69>$J$8,1,0)) -> 
A70: 67 | S70: 64 | T70: 17.64 | U70: 2.279875178
A71: 68 | S71: 65 | T71: =$S$4+(S71-1)*($T$4-$S$4)/($U$4-1) -> 17.92 | U71: 2.279875178 | V71: =--TRIM(SUBSTITUTE(B68,CHAR(160),"")) -> 
A72: 69 | S72: 66 | T72: 18.2 | U72: =IF(T72>$J$8,($H$8+$I$8*($J$8-T72)^2),$H$8) -> 2.279875178
A73: 70 | S73: 67 | T73: 18.48 | U73: 2.279875178
A74: 71 | S74: 68 | T74: 18.76 | U74: 2.279875178
A75: 72 | S75: 69 | T75: 19.04 | U75: 2.279871409
A76: 73 | S76: 70 | T76: 19.32 | U76: 2.279633801
A77: 74 | S77: 71 | T77: 19.6 | U77: 2.279026546
A78: 75 | S78: 72 | T78: 19.88 | U78: 2.278049645
A79: 76 | S79: 73 | T79: 20.16 | U79: 2.276703098
A80: 77 | S80: 74 | T80: 20.44 | U80: 2.274986904
A81: 78 | S81: 75 | T81: 20.72 | U81: 2.272901063
A82: 79 | S82: 76 | T82: 21 | U82: 2.270445575
A83: 80 | S83: 77 | T83: 21.28 | U83: 2.267620441
A84: 81 | S84: 78 | T84: 21.56 | U84: 2.264425661
A85: 82 | S85: 79 | T85: 21.84 | U85: 2.260861234
A86: 83 | S86: 80 | T86: 22.12 | U86: 2.25692716
A87: 84 | S87: 81 | T87: 22.4 | U87: 2.25262344 | V87: =--TRIM(SUBSTITUTE(B84,CHAR(160),"")) -> 
A88: 85 | S88: 82 | T88: 22.68 | U88: 2.247950073
A89: 86 | S89: 83 | T89: 22.96 | U89: 2.24290706
A90: 87 | S90: 84 | T90: 23.24 | U90: 2.237494399
A91: 88 | S91: 85 | T91: 23.52 | U91: 2.231712093
A92: 89 | S92: 86 | T92: 23.8 | U92: 2.22556014
A93: 90 | S93: 87 | T93: 24.08 | U93: 2.21903854
A94: 91 | S94: 88 | T94: 24.36 | U94: 2.212147294
A95: 92 | S95: 89 | T95: 24.64 | U95: 2.204886401
A96: 93 | S96: 90 | T96: 24.92 | U96: 2.197255861
A97: 94 | S97: 91 | T97: 25.2 | U97: 2.189255675
A98: 95 | S98: 92 | T98: 25.48 | U98: 2.180885843
A99: 96 | S99: 93 | T99: 25.76 | U99: 2.172146363
A100: 97 | S100: 94 | T100: 26.04 | U100: 2.163037238 | X100: =IF(ISBLANK(B100),"",1) -> 
A101: 98 | S101: 95 | T101: 26.32 | U101: 2.153558465 | X101: =IF(ISBLANK(B101),"",1) -> 
A102: 99 | S102: 96 | T102: 26.6 | U102: 2.143710046 | X102: =IF(ISBLANK(B102),"",1) -> 
A103: 100 | S103: 97 | T103: =$S$4+(S103-1)*($T$4-$S$4)/($U$4-1) -> 26.88 | U103: 2.133491981 | V103: =--TRIM(SUBSTITUTE(B100,CHAR(160),"")) ->  | X103: =IF(ISBLANK(B103),"",1) -> 
E104: =SUM(E4:E103) -> 11.19899436 | F104: =SUM(F4:F103) -> 0.0001014973032 | S104: 98 | T104: =$S$4+(S104-1)*($T$4-$S$4)/($U$4-1) -> 27.16 | U104: 2.122904269
S105: 99 | T105: =$S$4+(S105-1)*($T$4-$S$4)/($U$4-1) -> 27.44 | U105: 2.11194691
S106: 100 | T106: =$S$4+(S106-1)*($T$4-$S$4)/($U$4-1) -> 27.72 | U106: 2.100619905
S107: 101 | T107: =$S$4+(S107-1)*($T$4-$S$4)/($U$4-1) -> 28 | U107: 2.088923253
